{"text_format":"1","workbook":"xlsx","n_sheets":1,"sheets":["Zongozotla-Final-3550"],"not_rendered":{"charts":0,"images":0,"macros":1,"external_links":0,"defined_names":1,"comments":0,"pivot_tables":0},"unopened":[],"bounds":{"document_bytes":16777216,"sheet_cells":100000,"rows_first":2000,"rows_last":500,"rows_between":2000,"halvings":0,"cell_chars":16384,"cell_head_chars":4096},"cells_cut":0,"cells_raw":0,"read":"whole","date_system":"1900"}

{"sheet":"Zongozotla-Final-3550","index":0,"n_rows":288,"n_cols":12,"rows_kept":288,"cut":false,"hidden":false,"merged":[]}
["Community","Folder","Filename","Full path","Collection","Photographer","Descripción","Description",null,null,"Descripción lista","Description list"]
["Tlatlauquitepec and Yaonahuac","http://www.balsas-nahuatl.org/DEMCA-Images/Tlatlau-Yao","31378o_IMG_3920_ed-300nr_mjc.jpg",{"$f":"CONCATENATE(B2,\"/\",C2)","v":"http://www.balsas-nahuatl.org/DEMCA-Images/Tlatlau-Yao/31378o_IMG_3920_ed-300nr_mjc.jpg"},"31378","Miriam Jiménez Chimil","Hoja; Inflorescencia; Planta entera",null,null,null,"Cáliz","Branch or stem"]
["Tlatlauquitepec and Yaonahuac","http://www.balsas-nahuatl.org/DEMCA-Images/Tlatlau-Yao","31378o_IMG_3933_ed-cr-300nr_mjc.jpg",{"$f":"CONCATENATE(B3,\"/\",C3)","v":"http://www.balsas-nahuatl.org/DEMCA-Images/Tlatlau-Yao/31378o_IMG_3933_ed-cr-300nr_mjc.jpg"},"31378","Miriam Jiménez Chimil","Flor; Rama o tallo",null,null,null,"Esporangios","Calyx"]
["Tlatlauquitepec and Yaonahuac","http://www.balsas-nahuatl.org/DEMCA-Images/Tlatlau-Yao","31378o_IMG_3943_ed-cr-300nr_mjc.jpg","http://www.balsas-nahuatl.org/DEMCA-Images/Tlatlau-Yao/31378o_IMG_3943_ed-cr-300nr_mjc.jpg","31378","Miriam Jiménez Chimil","Cáliz; Flor; Rama o tallo",null,null,null,"Estípula","Flower"]
["Tlatlauquitepec and Yaonahuac","http://www.balsas-nahuatl.org/DEMCA-Images/Tlatlau-Yao","31396o_IMG_4774_ed-300nr_mgs.jpg","http://www.balsas-nahuatl.org/DEMCA-Images/Tlatlau-Yao/31396o_IMG_4774_ed-300nr_mgs.jpg","31396","Mariano Gorostiza Salazar","Hoja; Inflorescencia; Rama o tallo",null,null,null,"Flor","Fruit"]
["Tlatlauquitepec and Yaonahuac","http://www.balsas-nahuatl.org/DEMCA-Images/Tlatlau-Yao","31396o_IMG_4783_ed-cr-300nr_mgs.jpg","http://www.balsas-nahuatl.org/DEMCA-Images/Tlatlau-Yao/31396o_IMG_4783_ed-cr-300nr_mgs.jpg","31396","Mariano Gorostiza Salazar","Flor; Rama o tallo",null,null,null,"Fruto","Inflorescence"]
["Tlatlauquitepec and Yaonahuac","http://www.balsas-nahuatl.org/DEMCA-Images/Tlatlau-Yao","31396o_IMG_4792_ed-cr-300nr_mgs.jpg","http://www.balsas-nahuatl.org/DEMCA-Images/Tlatlau-Yao/31396o_IMG_4792_ed-cr-300nr_mgs.jpg","31396","Mariano Gorostiza Salazar","Fruto; Rama o tallo",null,null,null,"Hoja","Leaf"]
["Tlatlauquitepec and Yaonahuac","http://www.balsas-nahuatl.org/DEMCA-Images/Tlatlau-Yao","31422o_IMG_5581_ed-cr-300nr_mgs.jpg","http://www.balsas-nahuatl.org/DEMCA-Images/Tlatlau-Yao/31422o_IMG_5581_ed-cr-300nr_mgs.jpg","31422","Mariano Gorostiza Salazar","Flor; Rama o tallo",null,null,null,"Inflorescencia","Root system"]
["Tlatlauquitepec and Yaonahuac","http://www.balsas-nahuatl.org/DEMCA-Images/Tlatlau-Yao","31422o_IMG_5583_ed-cr-300nr_mgs.jpg","http://www.balsas-nahuatl.org/DEMCA-Images/Tlatlau-Yao/31422o_IMG_5583_ed-cr-300nr_mgs.jpg","31422","Mariano Gorostiza Salazar","Cáliz; Flor",null,null,null,"Planta entera","Sporangia"]
["Tlatlauquitepec and Yaonahuac","http://www.balsas-nahuatl.org/DEMCA-Images/Tlatlau-Yao","31422o_IMG_5598_ed-300nr_mgs.jpg","http://www.balsas-nahuatl.org/DEMCA-Images/Tlatlau-Yao/31422o_IMG_5598_ed-300nr_mgs.jpg","31422","Mariano Gorostiza Salazar","Hoja; Inflorescencia; Planta entera",null,null,null,"Rama o tallo","Stipule"]
["Tlatlauquitepec and Yaonahuac","http://www.balsas-nahuatl.org/DEMCA-Images/Tlatlau-Yao","31423o_IMG_5608_ed-300nr_mgs.jpg","http://www.balsas-nahuatl.org/DEMCA-Images/Tlatlau-Yao/31423o_IMG_5608_ed-300nr_mgs.jpg","31423","Mariano Gorostiza Salazar","Hoja; Rama o tallo",null,null,null,"Sistema de raíces","Trunk"]
["Tlatlauquitepec and Yaonahuac","http://www.balsas-nahuatl.org/DEMCA-Images/Tlatlau-Yao","31423o_IMG_5621_ed-cr-300nr_mgs.jpg","http://www.balsas-nahuatl.org/DEMCA-Images/Tlatlau-Yao/31423o_IMG_5621_ed-cr-300nr_mgs.jpg","31423","Mariano Gorostiza Salazar","Cáliz; Flor",null,null,null,"Tronco","Whole plant"]
["Tlatlauquitepec and Yaonahuac","http://www.balsas-nahuatl.org/DEMCA-Images/Tlatlau-Yao","31424o_IMG_5638_ed-cr-300nr_mgs.jpg","http://www.balsas-nahuatl.org/DEMCA-Images/Tlatlau-Yao/31424o_IMG_5638_ed-cr-300nr_mgs.jpg","31424","Mariano Gorostiza Salazar","Flor; Rama o tallo",null,null,null,"Voucher","Voucher"]
["Tlatlauquitepec and Yaonahuac","http://www.balsas-nahuatl.org/DEMCA-Images/Tlatlau-Yao","31424o_IMG_5646_ed-cr-300nr_mgs.jpg","http://www.balsas-nahuatl.org/DEMCA-Images/Tlatlau-Yao/31424o_IMG_5646_ed-cr-300nr_mgs.jpg","31424","Mariano Gorostiza Salazar","Cáliz; Flor"]
["Tlatlauquitepec and Yaonahuac","http://www.balsas-nahuatl.org/DEMCA-Images/Tlatlau-Yao","31424o_IMG_5653_ed-cr-300nr_mgs.jpg","http://www.balsas-nahuatl.org/DEMCA-Images/Tlatlau-Yao/31424o_IMG_5653_ed-cr-300nr_mgs.jpg","31424","Mariano Gorostiza Salazar","Hoja; Inflorescencia; Planta entera"]
["Tlatlauquitepec and Yaonahuac","http://www.balsas-nahuatl.org/DEMCA-Images/Tlatlau-Yao","31425o_IMG_5659_ed-cr-300nr_mgs.jpg","http://www.balsas-nahuatl.org/DEMCA-Images/Tlatlau-Yao/31425o_IMG_5659_ed-cr-300nr_mgs.jpg","31425","Mariano Gorostiza Salazar","Hoja; Rama o tallo"]
["Tlatlauquitepec and Yaonahuac","http://www.balsas-nahuatl.org/DEMCA-Images/Tlatlau-Yao","31425o_IMG_5663_ed-cr-300nr_mgs.jpg","http://www.balsas-nahuatl.org/DEMCA-Images/Tlatlau-Yao/31425o_IMG_5663_ed-cr-300nr_mgs.jpg","31425","Mariano Gorostiza Salazar","Cáliz; Flor"]
["Tlatlauquitepec and Yaonahuac","http://www.balsas-nahuatl.org/DEMCA-Images/Tlatlau-Yao","31426o_IMG_5676_ed-cr-300nr_mgs.jpg","http://www.balsas-nahuatl.org/DEMCA-Images/Tlatlau-Yao/31426o_IMG_5676_ed-cr-300nr_mgs.jpg","31426","Mariano Gorostiza Salazar","Hoja; Rama o tallo"]
["Tlatlauquitepec and Yaonahuac","http://www.balsas-nahuatl.org/DEMCA-Images/Tlatlau-Yao","31426o_IMG_5681_ed-cr-300nr_mgs.jpg","http://www.balsas-nahuatl.org/DEMCA-Images/Tlatlau-Yao/31426o_IMG_5681_ed-cr-300nr_mgs.jpg","31426","Mariano Gorostiza Salazar","Flor; Rama o tallo"]
["Tlatlauquitepec and Yaonahuac","http://www.balsas-nahuatl.org/DEMCA-Images/Tlatlau-Yao","31427o_IMG_5693_ed-cr-300nr_mgs.jpg","http://www.balsas-nahuatl.org/DEMCA-Images/Tlatlau-Yao/31427o_IMG_5693_ed-cr-300nr_mgs.jpg","31427","Mariano Gorostiza Salazar","Hoja; Rama o tallo"]
["Tlatlauquitepec and Yaonahuac","http://www.balsas-nahuatl.org/DEMCA-Images/Tlatlau-Yao","31427o_IMG_5695_ed-cr-300nr_mgs.jpg","http://www.balsas-nahuatl.org/DEMCA-Images/Tlatlau-Yao/31427o_IMG_5695_ed-cr-300nr_mgs.jpg","31427","Mariano Gorostiza Salazar","Flor; Rama o tallo"]
["Tlatlauquitepec and Yaonahuac","http://www.balsas-nahuatl.org/DEMCA-Images/Tlatlau-Yao","31428o_IMG_5716_ed-cr-300nr_mgs.jpg","http://www.balsas-nahuatl.org/DEMCA-Images/Tlatlau-Yao/31428o_IMG_5716_ed-cr-300nr_mgs.jpg","31428","Mariano Gorostiza Salazar","Fruto; Hoja"]
["Tlatlauquitepec and Yaonahuac","http://www.balsas-nahuatl.org/DEMCA-Images/Tlatlau-Yao","31428o_IMG_5722_ed-cr-300nr_mgs.jpg","http://www.balsas-nahuatl.org/DEMCA-Images/Tlatlau-Yao/31428o_IMG_5722_ed-cr-300nr_mgs.jpg","31428","Mariano Gorostiza Salazar","Fruto; Rama o tallo"]
["Tlatlauquitepec and Yaonahuac","http://www.balsas-nahuatl.org/DEMCA-Images/Tlatlau-Yao","31428o_IMG_5739_ed-300nr_mgs.jpg","http://www.balsas-nahuatl.org/DEMCA-Images/Tlatlau-Yao/31428o_IMG_5739_ed-300nr_mgs.jpg","31428","Mariano Gorostiza Salazar","Hoja; Rama o tallo"]
["Tlatlauquitepec and Yaonahuac","http://www.balsas-nahuatl.org/DEMCA-Images/Tlatlau-Yao","31429o_IMG_5752_ed-300nr_mgs.jpg","http://www.balsas-nahuatl.org/DEMCA-Images/Tlatlau-Yao/31429o_IMG_5752_ed-300nr_mgs.jpg","31429","Mariano Gorostiza Salazar","Hoja; Rama o tallo"]
["Tlatlauquitepec and Yaonahuac","http://www.balsas-nahuatl.org/DEMCA-Images/Tlatlau-Yao","31429o_IMG_5756_ed-300nr_mgs.jpg","http://www.balsas-nahuatl.org/DEMCA-Images/Tlatlau-Yao/31429o_IMG_5756_ed-300nr_mgs.jpg","31429","Mariano Gorostiza Salazar","Hoja; Rama o tallo"]
["Tlatlauquitepec and Yaonahuac","http://www.balsas-nahuatl.org/DEMCA-Images/Tlatlau-Yao","31429o_IMG_5764_ed-cr-300nr_mgs.jpg","http://www.balsas-nahuatl.org/DEMCA-Images/Tlatlau-Yao/31429o_IMG_5764_ed-cr-300nr_mgs.jpg","31429","Mariano Gorostiza Salazar","Fruto; Rama o tallo"]
["Tlatlauquitepec and Yaonahuac","http://www.balsas-nahuatl.org/DEMCA-Images/Tlatlau-Yao","31430o_IMG_5777_ed-cr-300nr_mgs.jpg","http://www.balsas-nahuatl.org/DEMCA-Images/Tlatlau-Yao/31430o_IMG_5777_ed-cr-300nr_mgs.jpg","31430","Mariano Gorostiza Salazar","Hoja; Rama o tallo"]
["Tlatlauquitepec and Yaonahuac","http://www.balsas-nahuatl.org/DEMCA-Images/Tlatlau-Yao","31430o_IMG_5783_ed-cr-300nr_mgs.jpg","http://www.balsas-nahuatl.org/DEMCA-Images/Tlatlau-Yao/31430o_IMG_5783_ed-cr-300nr_mgs.jpg","31430","Mariano Gorostiza Salazar","Cáliz; Flor; Rama o tallo"]
["Tlatlauquitepec and Yaonahuac","http://www.balsas-nahuatl.org/DEMCA-Images/Tlatlau-Yao","31430o_IMG_5790_ed-cr-300nr_mgs.jpg","http://www.balsas-nahuatl.org/DEMCA-Images/Tlatlau-Yao/31430o_IMG_5790_ed-cr-300nr_mgs.jpg","31430","Mariano Gorostiza Salazar","Flor"]
["Tlatlauquitepec and Yaonahuac","http://www.balsas-nahuatl.org/DEMCA-Images/Tlatlau-Yao","31431o_IMG_5830_ed-300nr_mgs.jpg","http://www.balsas-nahuatl.org/DEMCA-Images/Tlatlau-Yao/31431o_IMG_5830_ed-300nr_mgs.jpg","31431","Mariano Gorostiza Salazar","Hoja; Inflorescencia; Rama o tallo"]
["Tlatlauquitepec and Yaonahuac","http://www.balsas-nahuatl.org/DEMCA-Images/Tlatlau-Yao","31431o_IMG_5856_ed-cr-300nr_mgs.jpg","http://www.balsas-nahuatl.org/DEMCA-Images/Tlatlau-Yao/31431o_IMG_5856_ed-cr-300nr_mgs.jpg","31431","Mariano Gorostiza Salazar","Inflorescencia; Rama o tallo"]
["Tlatlauquitepec and Yaonahuac","http://www.balsas-nahuatl.org/DEMCA-Images/Tlatlau-Yao","31431o_IMG_5861_ed-cr-300nr_mgs.jpg","http://www.balsas-nahuatl.org/DEMCA-Images/Tlatlau-Yao/31431o_IMG_5861_ed-cr-300nr_mgs.jpg","31431","Mariano Gorostiza Salazar","Cáliz; Flor"]
["Tlatlauquitepec and Yaonahuac","http://www.balsas-nahuatl.org/DEMCA-Images/Tlatlau-Yao","31432o_IMG_5797_ed-300nr_mgs.jpg","http://www.balsas-nahuatl.org/DEMCA-Images/Tlatlau-Yao/31432o_IMG_5797_ed-300nr_mgs.jpg","31432","Mariano Gorostiza Salazar","Fruto; Hoja; Rama o tallo"]
["Tlatlauquitepec and Yaonahuac","http://www.balsas-nahuatl.org/DEMCA-Images/Tlatlau-Yao","31432o_IMG_5801_ed-300nr_mgs.jpg","http://www.balsas-nahuatl.org/DEMCA-Images/Tlatlau-Yao/31432o_IMG_5801_ed-300nr_mgs.jpg","31432","Mariano Gorostiza Salazar","Hoja; Rama o tallo"]
["Tlatlauquitepec and Yaonahuac","http://www.balsas-nahuatl.org/DEMCA-Images/Tlatlau-Yao","31432o_IMG_5808_ed-cr-300nr_mgs.jpg","http://www.balsas-nahuatl.org/DEMCA-Images/Tlatlau-Yao/31432o_IMG_5808_ed-cr-300nr_mgs.jpg","31432","Mariano Gorostiza Salazar","Fruto; Hoja"]
["Tlatlauquitepec and Yaonahuac","http://www.balsas-nahuatl.org/DEMCA-Images/Tlatlau-Yao","31433o_IMG_5887_ed-300nr_mjc.jpg","http://www.balsas-nahuatl.org/DEMCA-Images/Tlatlau-Yao/31433o_IMG_5887_ed-300nr_mjc.jpg","31433","Miriam Jiménez Chimil","Hoja; Rama o tallo"]
["Tlatlauquitepec and Yaonahuac","http://www.balsas-nahuatl.org/DEMCA-Images/Tlatlau-Yao","31433o_IMG_5896_ed-300nr_mjc.jpg","http://www.balsas-nahuatl.org/DEMCA-Images/Tlatlau-Yao/31433o_IMG_5896_ed-300nr_mjc.jpg","31433","Miriam Jiménez Chimil","Hoja; Rama o tallo"]
["Tlatlauquitepec and Yaonahuac","http://www.balsas-nahuatl.org/DEMCA-Images/Tlatlau-Yao","31434o_IMG_5907_ed-300nr_mjc.jpg","http://www.balsas-nahuatl.org/DEMCA-Images/Tlatlau-Yao/31434o_IMG_5907_ed-300nr_mjc.jpg","31434","Miriam Jiménez Chimil","Flor; Hoja; Planta entera"]
["Tlatlauquitepec and Yaonahuac","http://www.balsas-nahuatl.org/DEMCA-Images/Tlatlau-Yao","31434o_IMG_5917_ed-cr-300nr_mjc.jpg","http://www.balsas-nahuatl.org/DEMCA-Images/Tlatlau-Yao/31434o_IMG_5917_ed-cr-300nr_mjc.jpg","31434","Miriam Jiménez Chimil","Cáliz; Flor"]
["Tlatlauquitepec and Yaonahuac","http://www.balsas-nahuatl.org/DEMCA-Images/Tlatlau-Yao","31434o_IMG_5923_ed-cr-300nr_mjc.jpg","http://www.balsas-nahuatl.org/DEMCA-Images/Tlatlau-Yao/31434o_IMG_5923_ed-cr-300nr_mjc.jpg","31434","Miriam Jiménez Chimil","Hoja; Rama o tallo"]
["Tlatlauquitepec and Yaonahuac","http://www.balsas-nahuatl.org/DEMCA-Images/Tlatlau-Yao","31434o_IMG_5936_ed-300nr_mjc.jpg","http://www.balsas-nahuatl.org/DEMCA-Images/Tlatlau-Yao/31434o_IMG_5936_ed-300nr_mjc.jpg","31434","Miriam Jiménez Chimil","Flor; Rama o tallo"]
["Tlatlauquitepec and Yaonahuac","http://www.balsas-nahuatl.org/DEMCA-Images/Tlatlau-Yao","31449o_IMG_8358_ed-300nr_mgs.jpg","http://www.balsas-nahuatl.org/DEMCA-Images/Tlatlau-Yao/31449o_IMG_8358_ed-300nr_mgs.jpg","31449","Mariano Gorostiza Salazar","Fruto"]
["Tlatlauquitepec and Yaonahuac","http://www.balsas-nahuatl.org/DEMCA-Images/Tlatlau-Yao","31449x_IMG_6819_ed-300nr_mgs.jpg","http://www.balsas-nahuatl.org/DEMCA-Images/Tlatlau-Yao/31449x_IMG_6819_ed-300nr_mgs.jpg","31449","Mariano Gorostiza Salazar","Fruto; Rama o tallo"]
["Tlatlauquitepec and Yaonahuac","http://www.balsas-nahuatl.org/DEMCA-Images/Tlatlau-Yao","31449x_IMG_6824_ed-cr-300nr_mgs.jpg","http://www.balsas-nahuatl.org/DEMCA-Images/Tlatlau-Yao/31449x_IMG_6824_ed-cr-300nr_mgs.jpg","31449","Mariano Gorostiza Salazar","Hoja; Rama o tallo"]
["Tlatlauquitepec and Yaonahuac","http://www.balsas-nahuatl.org/DEMCA-Images/Tlatlau-Yao","31450o_IMG_6710_ed-cr-300nr_mgs.jpg","http://www.balsas-nahuatl.org/DEMCA-Images/Tlatlau-Yao/31450o_IMG_6710_ed-cr-300nr_mgs.jpg","31450","Mariano Gorostiza Salazar","Hoja; Inflorescencia; Planta entera"]
["Tlatlauquitepec and Yaonahuac","http://www.balsas-nahuatl.org/DEMCA-Images/Tlatlau-Yao","31450o_IMG_6715_ed-cr-300nr_mgs.jpg","http://www.balsas-nahuatl.org/DEMCA-Images/Tlatlau-Yao/31450o_IMG_6715_ed-cr-300nr_mgs.jpg","31450","Mariano Gorostiza Salazar","Cáliz; Flor"]
["Tlatlauquitepec and Yaonahuac","http://www.balsas-nahuatl.org/DEMCA-Images/Tlatlau-Yao","31451o_IMG_6733_ed-cr-300nr_mgs.jpg","http://www.balsas-nahuatl.org/DEMCA-Images/Tlatlau-Yao/31451o_IMG_6733_ed-cr-300nr_mgs.jpg","31451","Mariano Gorostiza Salazar","Hoja; Inflorescencia"]
["Tlatlauquitepec and Yaonahuac","http://www.balsas-nahuatl.org/DEMCA-Images/Tlatlau-Yao","31451o_IMG_6739_ed-300nr_mgs.jpg","http://www.balsas-nahuatl.org/DEMCA-Images/Tlatlau-Yao/31451o_IMG_6739_ed-300nr_mgs.jpg","31451","Mariano Gorostiza Salazar","Hoja; Inflorescencia; Rama o tallo"]
["Tlatlauquitepec and Yaonahuac","http://www.balsas-nahuatl.org/DEMCA-Images/Tlatlau-Yao","31452o_IMG_6783_ed-300nr_mgs.jpg","http://www.balsas-nahuatl.org/DEMCA-Images/Tlatlau-Yao/31452o_IMG_6783_ed-300nr_mgs.jpg","31452","Mariano Gorostiza Salazar","Hoja; Rama o tallo"]
["Tlatlauquitepec and Yaonahuac","http://www.balsas-nahuatl.org/DEMCA-Images/Tlatlau-Yao","31452o_IMG_6793_ed-cr-300nr_mgs.jpg","http://www.balsas-nahuatl.org/DEMCA-Images/Tlatlau-Yao/31452o_IMG_6793_ed-cr-300nr_mgs.jpg","31452","Mariano Gorostiza Salazar","Inflorescencia; Rama o tallo"]
["Tlatlauquitepec and Yaonahuac","http://www.balsas-nahuatl.org/DEMCA-Images/Tlatlau-Yao","31453o_IMG_6796_ed-cr-300nr_mgs.jpg","http://www.balsas-nahuatl.org/DEMCA-Images/Tlatlau-Yao/31453o_IMG_6796_ed-cr-300nr_mgs.jpg","31453","Mariano Gorostiza Salazar","Flor; Rama o tallo"]
["Tlatlauquitepec and Yaonahuac","http://www.balsas-nahuatl.org/DEMCA-Images/Tlatlau-Yao","31453o_IMG_6808_ed-300nr_mgs.jpg","http://www.balsas-nahuatl.org/DEMCA-Images/Tlatlau-Yao/31453o_IMG_6808_ed-300nr_mgs.jpg","31453","Mariano Gorostiza Salazar","Hoja; Inflorescencia; Rama o tallo"]
["Tlatlauquitepec and Yaonahuac","http://www.balsas-nahuatl.org/DEMCA-Images/Tlatlau-Yao","31453o_IMG_6811_ed-cr-300nr_mgs.jpg","http://www.balsas-nahuatl.org/DEMCA-Images/Tlatlau-Yao/31453o_IMG_6811_ed-cr-300nr_mgs.jpg","31453","Mariano Gorostiza Salazar","Flor; Rama o tallo"]
["Tlatlauquitepec and Yaonahuac","http://www.balsas-nahuatl.org/DEMCA-Images/Tlatlau-Yao","31454o_IMG_6828_ed-cr-300nr_mgs.jpg","http://www.balsas-nahuatl.org/DEMCA-Images/Tlatlau-Yao/31454o_IMG_6828_ed-cr-300nr_mgs.jpg","31454","Mariano Gorostiza Salazar","Hoja; Planta entera"]
["Tlatlauquitepec and Yaonahuac","http://www.balsas-nahuatl.org/DEMCA-Images/Tlatlau-Yao","31454o_IMG_6836_ed-cr-300nr_mgs.jpg","http://www.balsas-nahuatl.org/DEMCA-Images/Tlatlau-Yao/31454o_IMG_6836_ed-cr-300nr_mgs.jpg","31454","Mariano Gorostiza Salazar","Flor; Rama o tallo"]
["Tlatlauquitepec and Yaonahuac","http://www.balsas-nahuatl.org/DEMCA-Images/Tlatlau-Yao","31454o_IMG_6839_ed-cr-300nr_mgs.jpg","http://www.balsas-nahuatl.org/DEMCA-Images/Tlatlau-Yao/31454o_IMG_6839_ed-cr-300nr_mgs.jpg","31454","Mariano Gorostiza Salazar","Flor; Rama o tallo"]
["Tlatlauquitepec and Yaonahuac","http://www.balsas-nahuatl.org/DEMCA-Images/Tlatlau-Yao","31455o_IMG_6854_ed-cr-300nr_mgs.jpg","http://www.balsas-nahuatl.org/DEMCA-Images/Tlatlau-Yao/31455o_IMG_6854_ed-cr-300nr_mgs.jpg","31455","Mariano Gorostiza Salazar","Hoja; Inflorescencia; Rama o tallo"]
["Tlatlauquitepec and Yaonahuac","http://www.balsas-nahuatl.org/DEMCA-Images/Tlatlau-Yao","31455o_IMG_6862_ed-cr-300nr_mgs.jpg","http://www.balsas-nahuatl.org/DEMCA-Images/Tlatlau-Yao/31455o_IMG_6862_ed-cr-300nr_mgs.jpg","31455","Mariano Gorostiza Salazar","Inflorescencia; Rama o tallo"]
["Tlatlauquitepec and Yaonahuac","http://www.balsas-nahuatl.org/DEMCA-Images/Tlatlau-Yao","31455o_IMG_6863_ed-cr-300nr_mgs.jpg","http://www.balsas-nahuatl.org/DEMCA-Images/Tlatlau-Yao/31455o_IMG_6863_ed-cr-300nr_mgs.jpg","31455","Mariano Gorostiza Salazar","Cáliz; Inflorescencia"]
["Tlatlauquitepec and Yaonahuac","http://www.balsas-nahuatl.org/DEMCA-Images/Tlatlau-Yao","31456o_IMG_6877_ed-cr-300nr_mgs.jpg","http://www.balsas-nahuatl.org/DEMCA-Images/Tlatlau-Yao/31456o_IMG_6877_ed-cr-300nr_mgs.jpg","31456","Mariano Gorostiza Salazar","Flor; Hoja; Planta entera"]
["Tlatlauquitepec and Yaonahuac","http://www.balsas-nahuatl.org/DEMCA-Images/Tlatlau-Yao","31456o_IMG_6884_ed-cr-300nr_mgs.jpg","http://www.balsas-nahuatl.org/DEMCA-Images/Tlatlau-Yao/31456o_IMG_6884_ed-cr-300nr_mgs.jpg","31456","Mariano Gorostiza Salazar","Cáliz; Flor"]
["Tlatlauquitepec and Yaonahuac","http://www.balsas-nahuatl.org/DEMCA-Images/Tlatlau-Yao","31456o_IMG_6891_ed-cr-300nr_mgs.jpg","http://www.balsas-nahuatl.org/DEMCA-Images/Tlatlau-Yao/31456o_IMG_6891_ed-cr-300nr_mgs.jpg","31456","Mariano Gorostiza Salazar","Cáliz; Flor"]
["Tlatlauquitepec and Yaonahuac","http://www.balsas-nahuatl.org/DEMCA-Images/Tlatlau-Yao","31458o_IMG_6937_ed-300nr_mgs.jpg","http://www.balsas-nahuatl.org/DEMCA-Images/Tlatlau-Yao/31458o_IMG_6937_ed-300nr_mgs.jpg","31458","Mariano Gorostiza Salazar","Hoja; Inflorescencia; Rama o tallo"]
["Tlatlauquitepec and Yaonahuac","http://www.balsas-nahuatl.org/DEMCA-Images/Tlatlau-Yao","31458o_IMG_6941_ed-cr-300nr_mgs.jpg","http://www.balsas-nahuatl.org/DEMCA-Images/Tlatlau-Yao/31458o_IMG_6941_ed-cr-300nr_mgs.jpg","31458","Mariano Gorostiza Salazar","Cáliz; Flor; Rama o tallo"]
["Tlatlauquitepec and Yaonahuac","http://www.balsas-nahuatl.org/DEMCA-Images/Tlatlau-Yao","31458o_IMG_6945_ed-cr-300nr_mgs.jpg","http://www.balsas-nahuatl.org/DEMCA-Images/Tlatlau-Yao/31458o_IMG_6945_ed-cr-300nr_mgs.jpg","31458","Mariano Gorostiza Salazar","Cáliz; Flor"]
["Tlatlauquitepec and Yaonahuac","http://www.balsas-nahuatl.org/DEMCA-Images/Tlatlau-Yao","31459o_IMG_6966_ed-300nr_mgs.jpg",{"$f":"CONCATENATE(B67,\"/\",C67)","v":"http://www.balsas-nahuatl.org/DEMCA-Images/Tlatlau-Yao/31459o_IMG_6966_ed-300nr_mgs.jpg"},"31459","Mariano Gorostiza Salazar","Hoja; Inflorescencia; Planta entera"]
["Tlatlauquitepec and Yaonahuac","http://www.balsas-nahuatl.org/DEMCA-Images/Tlatlau-Yao","31459o_IMG_6985_ed-300nr_mgs.jpg","http://www.balsas-nahuatl.org/DEMCA-Images/Tlatlau-Yao/31459o_IMG_6985_ed-300nr_mgs.jpg","31459","Mariano Gorostiza Salazar","Cáliz; Flor"]
["Tlatlauquitepec and Yaonahuac","http://www.balsas-nahuatl.org/DEMCA-Images/Tlatlau-Yao","31459o_IMG_6990_ed-cr-300nr_mgs.jpg","http://www.balsas-nahuatl.org/DEMCA-Images/Tlatlau-Yao/31459o_IMG_6990_ed-cr-300nr_mgs.jpg","31459","Mariano Gorostiza Salazar","Cáliz; Flor"]
["Tlatlauquitepec and Yaonahuac","http://www.balsas-nahuatl.org/DEMCA-Images/Tlatlau-Yao","31465o_IMG_8667_ed-300nr_mjc.jpg","http://www.balsas-nahuatl.org/DEMCA-Images/Tlatlau-Yao/31465o_IMG_8667_ed-300nr_mjc.jpg","31465","Miriam Jiménez Chimil","Hoja; Inflorescencia; Rama o tallo"]
["Tlatlauquitepec and Yaonahuac","http://www.balsas-nahuatl.org/DEMCA-Images/Tlatlau-Yao","31465o_IMG_8691_ed-cr-300nr_mjc.jpg","http://www.balsas-nahuatl.org/DEMCA-Images/Tlatlau-Yao/31465o_IMG_8691_ed-cr-300nr_mjc.jpg","31465","Miriam Jiménez Chimil","Flor; Rama o tallo"]
["Tlatlauquitepec and Yaonahuac","http://www.balsas-nahuatl.org/DEMCA-Images/Tlatlau-Yao","31465o_IMG_8711_ed-cr-300nr_mjc.jpg","http://www.balsas-nahuatl.org/DEMCA-Images/Tlatlau-Yao/31465o_IMG_8711_ed-cr-300nr_mjc.jpg","31465","Miriam Jiménez Chimil","Flor; Rama o tallo"]
["Tlatlauquitepec and Yaonahuac","http://www.balsas-nahuatl.org/DEMCA-Images/Tlatlau-Yao","31466o_IMG_8745_ed-300nr_mjc.jpg","http://www.balsas-nahuatl.org/DEMCA-Images/Tlatlau-Yao/31466o_IMG_8745_ed-300nr_mjc.jpg","31466","Miriam Jiménez Chimil","Hoja; Inflorescencia; Rama o tallo"]
["Tlatlauquitepec and Yaonahuac","http://www.balsas-nahuatl.org/DEMCA-Images/Tlatlau-Yao","31466o_IMG_8762_ed-cr-300nr_mjc.jpg","http://www.balsas-nahuatl.org/DEMCA-Images/Tlatlau-Yao/31466o_IMG_8762_ed-cr-300nr_mjc.jpg","31466","Miriam Jiménez Chimil","Flor; Rama o tallo"]
["Tlatlauquitepec and Yaonahuac","http://www.balsas-nahuatl.org/DEMCA-Images/Tlatlau-Yao","31466o_IMG_8799_ed-cr-300nr_mjc.jpg","http://www.balsas-nahuatl.org/DEMCA-Images/Tlatlau-Yao/31466o_IMG_8799_ed-cr-300nr_mjc.jpg","31466","Miriam Jiménez Chimil","Flor; Rama o tallo"]
["Tlatlauquitepec and Yaonahuac","http://www.balsas-nahuatl.org/DEMCA-Images/Tlatlau-Yao","31467o_IMG_8068_ed-300nr_mjc.jpg","http://www.balsas-nahuatl.org/DEMCA-Images/Tlatlau-Yao/31467o_IMG_8068_ed-300nr_mjc.jpg","31467","Miriam Jiménez Chimil","Hoja; Rama o tallo"]
["Tlatlauquitepec and Yaonahuac","http://www.balsas-nahuatl.org/DEMCA-Images/Tlatlau-Yao","31467o_IMG_8075_ed-cr-300nr_mjc.jpg","http://www.balsas-nahuatl.org/DEMCA-Images/Tlatlau-Yao/31467o_IMG_8075_ed-cr-300nr_mjc.jpg","31467","Miriam Jiménez Chimil","Flor; Rama o tallo"]
["Tlatlauquitepec and Yaonahuac","http://www.balsas-nahuatl.org/DEMCA-Images/Tlatlau-Yao","31467o_IMG_8091_ed-cr-300nr_mjc.jpg","http://www.balsas-nahuatl.org/DEMCA-Images/Tlatlau-Yao/31467o_IMG_8091_ed-cr-300nr_mjc.jpg","31467","Miriam Jiménez Chimil","Flor; Rama o tallo"]
["Tlatlauquitepec and Yaonahuac","http://www.balsas-nahuatl.org/DEMCA-Images/Tlatlau-Yao","31468o_IMG_8093_ed-cr-300nr_mjc.jpg","http://www.balsas-nahuatl.org/DEMCA-Images/Tlatlau-Yao/31468o_IMG_8093_ed-cr-300nr_mjc.jpg","31468","Miriam Jiménez Chimil","Cáliz; Flor"]
["Tlatlauquitepec and Yaonahuac","http://www.balsas-nahuatl.org/DEMCA-Images/Tlatlau-Yao","31468o_IMG_8102_ed-cr-300nr_mjc.jpg","http://www.balsas-nahuatl.org/DEMCA-Images/Tlatlau-Yao/31468o_IMG_8102_ed-cr-300nr_mjc.jpg","31468","Miriam Jiménez Chimil","Cáliz; Flor"]
["Tlatlauquitepec and Yaonahuac","http://www.balsas-nahuatl.org/DEMCA-Images/Tlatlau-Yao","31468o_IMG_8126_ed-cr-300nr_mjc.jpg","http://www.balsas-nahuatl.org/DEMCA-Images/Tlatlau-Yao/31468o_IMG_8126_ed-cr-300nr_mjc.jpg","31468","Miriam Jiménez Chimil","Hoja; Inflorescencia; Planta entera"]
["Tlatlauquitepec and Yaonahuac","http://www.balsas-nahuatl.org/DEMCA-Images/Tlatlau-Yao","31469o_IMG_8137_ed-cr-300nr_mjc.jpg","http://www.balsas-nahuatl.org/DEMCA-Images/Tlatlau-Yao/31469o_IMG_8137_ed-cr-300nr_mjc.jpg","31469","Miriam Jiménez Chimil","Hoja; Rama o tallo"]
["Tlatlauquitepec and Yaonahuac","http://www.balsas-nahuatl.org/DEMCA-Images/Tlatlau-Yao","31469o_IMG_8144_ed-cr-300nr_mjc.jpg","http://www.balsas-nahuatl.org/DEMCA-Images/Tlatlau-Yao/31469o_IMG_8144_ed-cr-300nr_mjc.jpg","31469","Miriam Jiménez Chimil","Flor; Rama o tallo"]
["Tlatlauquitepec and Yaonahuac","http://www.balsas-nahuatl.org/DEMCA-Images/Tlatlau-Yao","31469o_IMG_8154_ed-cr-300nr_mjc.jpg","http://www.balsas-nahuatl.org/DEMCA-Images/Tlatlau-Yao/31469o_IMG_8154_ed-cr-300nr_mjc.jpg","31469","Miriam Jiménez Chimil","Cáliz; Flor"]
["Tlatlauquitepec and Yaonahuac","http://www.balsas-nahuatl.org/DEMCA-Images/Tlatlau-Yao","31477o_IMG_9151_ed-300nr_mjc.jpg","http://www.balsas-nahuatl.org/DEMCA-Images/Tlatlau-Yao/31477o_IMG_9151_ed-300nr_mjc.jpg","31477","Miriam Jiménez Chimil","Hoja; Rama o tallo"]
["Tlatlauquitepec and Yaonahuac","http://www.balsas-nahuatl.org/DEMCA-Images/Tlatlau-Yao","31477o_IMG_9172_ed-cr-300nr_mjc.jpg","http://www.balsas-nahuatl.org/DEMCA-Images/Tlatlau-Yao/31477o_IMG_9172_ed-cr-300nr_mjc.jpg","31477","Miriam Jiménez Chimil","Fruto; Rama o tallo"]
["Tlatlauquitepec and Yaonahuac","http://www.balsas-nahuatl.org/DEMCA-Images/Tlatlau-Yao","31477o_IMG_9187_ed-cr-300nr_mjc.jpg","http://www.balsas-nahuatl.org/DEMCA-Images/Tlatlau-Yao/31477o_IMG_9187_ed-cr-300nr_mjc.jpg","31477","Miriam Jiménez Chimil","Fruto"]
["Tlatlauquitepec and Yaonahuac","http://www.balsas-nahuatl.org/DEMCA-Images/Tlatlau-Yao","31477o_IMG_9215_ed-300nr_mjc.jpg","http://www.balsas-nahuatl.org/DEMCA-Images/Tlatlau-Yao/31477o_IMG_9215_ed-300nr_mjc.jpg","31477","Miriam Jiménez Chimil","Hoja"]
["Tlatlauquitepec and Yaonahuac","http://www.balsas-nahuatl.org/DEMCA-Images/Tlatlau-Yao","31478o_IMG_9227_ed-300nr_mjc.jpg","http://www.balsas-nahuatl.org/DEMCA-Images/Tlatlau-Yao/31478o_IMG_9227_ed-300nr_mjc.jpg","31478","Miriam Jiménez Chimil","Fruto; Hoja"]
["Tlatlauquitepec and Yaonahuac","http://www.balsas-nahuatl.org/DEMCA-Images/Tlatlau-Yao","31478o_IMG_9244_ed-300nr_mjc.jpg","http://www.balsas-nahuatl.org/DEMCA-Images/Tlatlau-Yao/31478o_IMG_9244_ed-300nr_mjc.jpg","31478","Miriam Jiménez Chimil","Fruto; Rama o tallo"]
["Tlatlauquitepec and Yaonahuac","http://www.balsas-nahuatl.org/DEMCA-Images/Tlatlau-Yao","31478o_IMG_9253_ed-cr-300nr_mjc.jpg","http://www.balsas-nahuatl.org/DEMCA-Images/Tlatlau-Yao/31478o_IMG_9253_ed-cr-300nr_mjc.jpg","31478","Miriam Jiménez Chimil","Fruto; Rama o tallo"]
["Tlatlauquitepec and Yaonahuac","http://www.balsas-nahuatl.org/DEMCA-Images/Tlatlau-Yao","31479o_IMG_9261_ed-300nr_mjc.jpg","http://www.balsas-nahuatl.org/DEMCA-Images/Tlatlau-Yao/31479o_IMG_9261_ed-300nr_mjc.jpg","31479","Miriam Jiménez Chimil","Hoja; Rama o tallo"]
["Tlatlauquitepec and Yaonahuac","http://www.balsas-nahuatl.org/DEMCA-Images/Tlatlau-Yao","31479o_IMG_9276_ed-300nr_mjc.jpg","http://www.balsas-nahuatl.org/DEMCA-Images/Tlatlau-Yao/31479o_IMG_9276_ed-300nr_mjc.jpg","31479","Miriam Jiménez Chimil","Hoja; Rama o tallo"]
["Tlatlauquitepec and Yaonahuac","http://www.balsas-nahuatl.org/DEMCA-Images/Tlatlau-Yao","31490o_IMG_0267_ed-300nr_mjc.jpg","http://www.balsas-nahuatl.org/DEMCA-Images/Tlatlau-Yao/31490o_IMG_0267_ed-300nr_mjc.jpg","31490","Miriam Jiménez Chimil","Hoja; Rama o tallo"]
["Tlatlauquitepec and Yaonahuac","http://www.balsas-nahuatl.org/DEMCA-Images/Tlatlau-Yao","31490o_IMG_0276_ed-cr-300nr_mjc.jpg","http://www.balsas-nahuatl.org/DEMCA-Images/Tlatlau-Yao/31490o_IMG_0276_ed-cr-300nr_mjc.jpg","31490","Miriam Jiménez Chimil","Flor; Rama o tallo"]
["Tlatlauquitepec and Yaonahuac","http://www.balsas-nahuatl.org/DEMCA-Images/Tlatlau-Yao","31490o_IMG_0294_ed-cr-300nr_mjc.jpg","http://www.balsas-nahuatl.org/DEMCA-Images/Tlatlau-Yao/31490o_IMG_0294_ed-cr-300nr_mjc.jpg","31490","Miriam Jiménez Chimil","Flor; Rama o tallo"]
["Tlatlauquitepec and Yaonahuac","http://www.balsas-nahuatl.org/DEMCA-Images/Tlatlau-Yao","31491o_IMG_0310-ed-cr-300nr_mjc.jpg","http://www.balsas-nahuatl.org/DEMCA-Images/Tlatlau-Yao/31491o_IMG_0310-ed-cr-300nr_mjc.jpg","31491","Miriam Jiménez Chimil","Hoja; Rama o tallo"]
["Tlatlauquitepec and Yaonahuac","http://www.balsas-nahuatl.org/DEMCA-Images/Tlatlau-Yao","31491o_IMG_0328_ed-cr-300nr_mjc.jpg","http://www.balsas-nahuatl.org/DEMCA-Images/Tlatlau-Yao/31491o_IMG_0328_ed-cr-300nr_mjc.jpg","31491","Miriam Jiménez Chimil","Cáliz; Flor; Rama o tallo"]
["Tlatlauquitepec and Yaonahuac","http://www.balsas-nahuatl.org/DEMCA-Images/Tlatlau-Yao","31491o_IMG_0348_ed-300nr_mjc.jpg","http://www.balsas-nahuatl.org/DEMCA-Images/Tlatlau-Yao/31491o_IMG_0348_ed-300nr_mjc.jpg","31491","Miriam Jiménez Chimil","Hoja; Rama o tallo"]
["Tlatlauquitepec and Yaonahuac","http://www.balsas-nahuatl.org/DEMCA-Images/Tlatlau-Yao","31492o_IMG_0842_ed-300nr_mjc.jpg","http://www.balsas-nahuatl.org/DEMCA-Images/Tlatlau-Yao/31492o_IMG_0842_ed-300nr_mjc.jpg","31492","Miriam Jiménez Chimil","Hoja; Rama o tallo"]
["Tlatlauquitepec and Yaonahuac","http://www.balsas-nahuatl.org/DEMCA-Images/Tlatlau-Yao","31492o_IMG_0878_ed-cr-300nr_mjc.jpg","http://www.balsas-nahuatl.org/DEMCA-Images/Tlatlau-Yao/31492o_IMG_0878_ed-cr-300nr_mjc.jpg","31492","Miriam Jiménez Chimil","Fruto; Rama o tallo"]
["Tlatlauquitepec and Yaonahuac","http://www.balsas-nahuatl.org/DEMCA-Images/Tlatlau-Yao","31493o_IMG_0888_ed-cr-300nr_mjc.jpg","http://www.balsas-nahuatl.org/DEMCA-Images/Tlatlau-Yao/31493o_IMG_0888_ed-cr-300nr_mjc.jpg","31493","Miriam Jiménez Chimil","Flor"]
["Tlatlauquitepec and Yaonahuac","http://www.balsas-nahuatl.org/DEMCA-Images/Tlatlau-Yao","31493o_IMG_0903_ed-cr-300nr_mjc.jpg","http://www.balsas-nahuatl.org/DEMCA-Images/Tlatlau-Yao/31493o_IMG_0903_ed-cr-300nr_mjc.jpg","31493","Miriam Jiménez Chimil","Flor"]
["Tlatlauquitepec and Yaonahuac","http://www.balsas-nahuatl.org/DEMCA-Images/Tlatlau-Yao","31493o_IMG_0911_ed-300nr_mjc.jpg","http://www.balsas-nahuatl.org/DEMCA-Images/Tlatlau-Yao/31493o_IMG_0911_ed-300nr_mjc.jpg","31493","Miriam Jiménez Chimil","Flor; Hoja; Rama o tallo"]
["Tlatlauquitepec and Yaonahuac","http://www.balsas-nahuatl.org/DEMCA-Images/Tlatlau-Yao","31494o_IMG_0935_ed-300nr_mjc.jpg","http://www.balsas-nahuatl.org/DEMCA-Images/Tlatlau-Yao/31494o_IMG_0935_ed-300nr_mjc.jpg","31494","Miriam Jiménez Chimil","Flor; Hoja; Rama o tallo"]
["Tlatlauquitepec and Yaonahuac","http://www.balsas-nahuatl.org/DEMCA-Images/Tlatlau-Yao","31494o_IMG_0941_ed-300nr_mjc.jpg","http://www.balsas-nahuatl.org/DEMCA-Images/Tlatlau-Yao/31494o_IMG_0941_ed-300nr_mjc.jpg","31494","Miriam Jiménez Chimil","Flor; Rama o tallo"]
["Tlatlauquitepec and Yaonahuac","http://www.balsas-nahuatl.org/DEMCA-Images/Tlatlau-Yao","31494o_IMG_0946_ed-cr-300nr_mjc.jpg","http://www.balsas-nahuatl.org/DEMCA-Images/Tlatlau-Yao/31494o_IMG_0946_ed-cr-300nr_mjc.jpg","31494","Miriam Jiménez Chimil","Fruto; Rama o tallo"]
["Tlatlauquitepec and Yaonahuac","http://www.balsas-nahuatl.org/DEMCA-Images/Tlatlau-Yao","31495o_IMG_0963_ed-300nr_mjc.jpg","http://www.balsas-nahuatl.org/DEMCA-Images/Tlatlau-Yao/31495o_IMG_0963_ed-300nr_mjc.jpg","31495","Miriam Jiménez Chimil","Hoja; Rama o tallo"]
["Tlatlauquitepec and Yaonahuac","http://www.balsas-nahuatl.org/DEMCA-Images/Tlatlau-Yao","31495o_IMG_0970_ed-cr-300nr_mjc.jpg","http://www.balsas-nahuatl.org/DEMCA-Images/Tlatlau-Yao/31495o_IMG_0970_ed-cr-300nr_mjc.jpg","31495","Miriam Jiménez Chimil","Cáliz; Flor"]
["Tlatlauquitepec and Yaonahuac","http://www.balsas-nahuatl.org/DEMCA-Images/Tlatlau-Yao","31495o_IMG_0973_ed-300nr_mjc.jpg","http://www.balsas-nahuatl.org/DEMCA-Images/Tlatlau-Yao/31495o_IMG_0973_ed-300nr_mjc.jpg","31495","Miriam Jiménez Chimil","Flor"]
["Tlatlauquitepec and Yaonahuac","http://www.balsas-nahuatl.org/DEMCA-Images/Tlatlau-Yao","31496o_IMG_0981_ed-300nr_mjc.jpg","http://www.balsas-nahuatl.org/DEMCA-Images/Tlatlau-Yao/31496o_IMG_0981_ed-300nr_mjc.jpg","31496","Miriam Jiménez Chimil","Hoja; Rama o tallo"]
["Tlatlauquitepec and Yaonahuac","http://www.balsas-nahuatl.org/DEMCA-Images/Tlatlau-Yao","31496o_IMG_0990_ed-cr-300nr_mjc.jpg","http://www.balsas-nahuatl.org/DEMCA-Images/Tlatlau-Yao/31496o_IMG_0990_ed-cr-300nr_mjc.jpg","31496","Miriam Jiménez Chimil","Cáliz; Flor"]
["Tlatlauquitepec and Yaonahuac","http://www.balsas-nahuatl.org/DEMCA-Images/Tlatlau-Yao","31496o_IMG_0996_ed-cr-300nr_mjc.jpg","http://www.balsas-nahuatl.org/DEMCA-Images/Tlatlau-Yao/31496o_IMG_0996_ed-cr-300nr_mjc.jpg","31496","Miriam Jiménez Chimil","Cáliz; Flor"]
["Tlatlauquitepec and Yaonahuac","http://www.balsas-nahuatl.org/DEMCA-Images/Tlatlau-Yao","31496o_IMG_0998_ed-cr-300nr_mjc.jpg","http://www.balsas-nahuatl.org/DEMCA-Images/Tlatlau-Yao/31496o_IMG_0998_ed-cr-300nr_mjc.jpg","31496","Miriam Jiménez Chimil","Fruto; Rama o tallo"]
["Tlatlauquitepec and Yaonahuac","http://www.balsas-nahuatl.org/DEMCA-Images/Tlatlau-Yao","31497o_IMG_1042_ed-300nr_mjc.jpg","http://www.balsas-nahuatl.org/DEMCA-Images/Tlatlau-Yao/31497o_IMG_1042_ed-300nr_mjc.jpg","31497","Miriam Jiménez Chimil","Hoja; Rama o tallo"]
["Tlatlauquitepec and Yaonahuac","http://www.balsas-nahuatl.org/DEMCA-Images/Tlatlau-Yao","31497o_IMG_1056_ed-cr-300nr_mjc.jpg","http://www.balsas-nahuatl.org/DEMCA-Images/Tlatlau-Yao/31497o_IMG_1056_ed-cr-300nr_mjc.jpg","31497","Miriam Jiménez Chimil","Fruto; Rama o tallo"]
["Tlatlauquitepec and Yaonahuac","http://www.balsas-nahuatl.org/DEMCA-Images/Tlatlau-Yao","31497o_IMG_1060_ed-cr-300nr_mjc.jpg","http://www.balsas-nahuatl.org/DEMCA-Images/Tlatlau-Yao/31497o_IMG_1060_ed-cr-300nr_mjc.jpg","31497","Miriam Jiménez Chimil","Flor; Rama o tallo"]
["Tlatlauquitepec and Yaonahuac","http://www.balsas-nahuatl.org/DEMCA-Images/Tlatlau-Yao","31498o_IMG_1089_ed-300nr_mjc.jpg","http://www.balsas-nahuatl.org/DEMCA-Images/Tlatlau-Yao/31498o_IMG_1089_ed-300nr_mjc.jpg","31498","Miriam Jiménez Chimil","Hoja; Rama o tallo"]
["Tlatlauquitepec and Yaonahuac","http://www.balsas-nahuatl.org/DEMCA-Images/Tlatlau-Yao","31498o_IMG_1095_ed-cr-300nr_mjc.jpg","http://www.balsas-nahuatl.org/DEMCA-Images/Tlatlau-Yao/31498o_IMG_1095_ed-cr-300nr_mjc.jpg","31498","Miriam Jiménez Chimil","Inflorescencia; Rama o tallo"]
["Tlatlauquitepec and Yaonahuac","http://www.balsas-nahuatl.org/DEMCA-Images/Tlatlau-Yao","31498o_IMG_1111_ed-cr-300nr_mjc.jpg","http://www.balsas-nahuatl.org/DEMCA-Images/Tlatlau-Yao/31498o_IMG_1111_ed-cr-300nr_mjc.jpg","31498","Miriam Jiménez Chimil","Hoja; Rama o tallo"]
["Tlatlauquitepec and Yaonahuac","http://www.balsas-nahuatl.org/DEMCA-Images/Tlatlau-Yao","31499o_IMG_1118_ed-300nr_mjc.jpg","http://www.balsas-nahuatl.org/DEMCA-Images/Tlatlau-Yao/31499o_IMG_1118_ed-300nr_mjc.jpg","31499","Miriam Jiménez Chimil","Hoja; Inflorescencia; Rama o tallo"]
["Tlatlauquitepec and Yaonahuac","http://www.balsas-nahuatl.org/DEMCA-Images/Tlatlau-Yao","31499o_IMG_1121_ed-300nr_mjc.jpg","http://www.balsas-nahuatl.org/DEMCA-Images/Tlatlau-Yao/31499o_IMG_1121_ed-300nr_mjc.jpg","31499","Miriam Jiménez Chimil","Hoja; Rama o tallo"]
["Tlatlauquitepec and Yaonahuac","http://www.balsas-nahuatl.org/DEMCA-Images/Tlatlau-Yao","31499o_IMG_1123_ed-cr-300nr_mjc.jpg","http://www.balsas-nahuatl.org/DEMCA-Images/Tlatlau-Yao/31499o_IMG_1123_ed-cr-300nr_mjc.jpg","31499","Miriam Jiménez Chimil","Inflorescencia"]
["Tlatlauquitepec and Yaonahuac","http://www.balsas-nahuatl.org/DEMCA-Images/Tlatlau-Yao","31499o_IMG_1135_ed-cr-300nr_mjc.jpg","http://www.balsas-nahuatl.org/DEMCA-Images/Tlatlau-Yao/31499o_IMG_1135_ed-cr-300nr_mjc.jpg","31499","Miriam Jiménez Chimil","Cáliz; Flor; Rama o tallo"]
["Tlatlauquitepec and Yaonahuac","http://www.balsas-nahuatl.org/DEMCA-Images/Tlatlau-Yao","31500o_IMG_1136_ed-300nr_mjc.jpg","http://www.balsas-nahuatl.org/DEMCA-Images/Tlatlau-Yao/31500o_IMG_1136_ed-300nr_mjc.jpg","31500","Miriam Jiménez Chimil","Inflorescencia"]
["Tlatlauquitepec and Yaonahuac","http://www.balsas-nahuatl.org/DEMCA-Images/Tlatlau-Yao","31500o_IMG_1152_ed-300nr_mjc.jpg","http://www.balsas-nahuatl.org/DEMCA-Images/Tlatlau-Yao/31500o_IMG_1152_ed-300nr_mjc.jpg","31500","Miriam Jiménez Chimil","Hoja; Inflorescencia; Rama o tallo"]
["Tlatlauquitepec and Yaonahuac","http://www.balsas-nahuatl.org/DEMCA-Images/Tlatlau-Yao","31501o_IMG_1158_ed-cr-300nr_mjc.jpg","http://www.balsas-nahuatl.org/DEMCA-Images/Tlatlau-Yao/31501o_IMG_1158_ed-cr-300nr_mjc.jpg","31501","Miriam Jiménez Chimil","Flor"]
["Tlatlauquitepec and Yaonahuac","http://www.balsas-nahuatl.org/DEMCA-Images/Tlatlau-Yao","31501o_IMG_1176_ed-cr-300nr_mjc.jpg","http://www.balsas-nahuatl.org/DEMCA-Images/Tlatlau-Yao/31501o_IMG_1176_ed-cr-300nr_mjc.jpg","31501","Miriam Jiménez Chimil","Flor; Hoja; Rama o tallo"]
["Tlatlauquitepec and Yaonahuac","http://www.balsas-nahuatl.org/DEMCA-Images/Tlatlau-Yao","31502o_IMG_1188_ed-300nr_mjc.jpg","http://www.balsas-nahuatl.org/DEMCA-Images/Tlatlau-Yao/31502o_IMG_1188_ed-300nr_mjc.jpg","31502","Miriam Jiménez Chimil","Hoja; Rama o tallo"]
["Tlatlauquitepec and Yaonahuac","http://www.balsas-nahuatl.org/DEMCA-Images/Tlatlau-Yao","31502o_IMG_1213_ed-cr-300nr_mjc.jpg","http://www.balsas-nahuatl.org/DEMCA-Images/Tlatlau-Yao/31502o_IMG_1213_ed-cr-300nr_mjc.jpg","31502","Miriam Jiménez Chimil","Cáliz; Flor"]
["Tlatlauquitepec and Yaonahuac","http://www.balsas-nahuatl.org/DEMCA-Images/Tlatlau-Yao","31502o_IMG_1222_ed-cr-300nr_mjc.jpg",{"$f":"CONCATENATE(B131,\"/\",C131)","v":"http://www.balsas-nahuatl.org/DEMCA-Images/Tlatlau-Yao/31502o_IMG_1222_ed-cr-300nr_mjc.jpg"},"31502","Miriam Jiménez Chimil","Cáliz; Flor; Rama o tallo"]
["Tlatlauquitepec and Yaonahuac","http://www.balsas-nahuatl.org/DEMCA-Images/Tlatlau-Yao","31503o_IMG_1236_ed-300nr_mjc.jpg","http://www.balsas-nahuatl.org/DEMCA-Images/Tlatlau-Yao/31503o_IMG_1236_ed-300nr_mjc.jpg","31503","Miriam Jiménez Chimil","Hoja; Inflorescencia; Rama o tallo"]
["Tlatlauquitepec and Yaonahuac","http://www.balsas-nahuatl.org/DEMCA-Images/Tlatlau-Yao","31503o_IMG_1246_ed-cr-300nr_mjc.jpg","http://www.balsas-nahuatl.org/DEMCA-Images/Tlatlau-Yao/31503o_IMG_1246_ed-cr-300nr_mjc.jpg","31503","Miriam Jiménez Chimil","Inflorescencia"]
["Tlatlauquitepec and Yaonahuac","http://www.balsas-nahuatl.org/DEMCA-Images/Tlatlau-Yao","31503o_IMG_1252_ed-cr-300nr_mjc.jpg","http://www.balsas-nahuatl.org/DEMCA-Images/Tlatlau-Yao/31503o_IMG_1252_ed-cr-300nr_mjc.jpg","31503","Miriam Jiménez Chimil","Cáliz; Fruto"]
["Tlatlauquitepec and Yaonahuac","http://www.balsas-nahuatl.org/DEMCA-Images/Tlatlau-Yao","31504o_IMG_1262_ed-300nr_mjc.jpg","http://www.balsas-nahuatl.org/DEMCA-Images/Tlatlau-Yao/31504o_IMG_1262_ed-300nr_mjc.jpg","31504","Miriam Jiménez Chimil","Hoja; Rama o tallo"]
["Tlatlauquitepec and Yaonahuac","http://www.balsas-nahuatl.org/DEMCA-Images/Tlatlau-Yao","31504o_IMG_1272_ed-cr-300nr_mjc.jpg","http://www.balsas-nahuatl.org/DEMCA-Images/Tlatlau-Yao/31504o_IMG_1272_ed-cr-300nr_mjc.jpg","31504","Miriam Jiménez Chimil","Inflorescencia"]
["Tlatlauquitepec and Yaonahuac","http://www.balsas-nahuatl.org/DEMCA-Images/Tlatlau-Yao","31504o_IMG_1281_ed-300nr_mjc.jpg","http://www.balsas-nahuatl.org/DEMCA-Images/Tlatlau-Yao/31504o_IMG_1281_ed-300nr_mjc.jpg","31504","Miriam Jiménez Chimil","Inflorescencia"]
["Tlatlauquitepec and Yaonahuac","http://www.balsas-nahuatl.org/DEMCA-Images/Tlatlau-Yao","31505o_IMG_1296_ed-300nr_mjc.jpg","http://www.balsas-nahuatl.org/DEMCA-Images/Tlatlau-Yao/31505o_IMG_1296_ed-300nr_mjc.jpg","31505","Miriam Jiménez Chimil","Hoja; Inflorescencia; Rama o tallo"]
["Tlatlauquitepec and Yaonahuac","http://www.balsas-nahuatl.org/DEMCA-Images/Tlatlau-Yao","31505o_IMG_1320_ed-cr-300nr_mjc.jpg","http://www.balsas-nahuatl.org/DEMCA-Images/Tlatlau-Yao/31505o_IMG_1320_ed-cr-300nr_mjc.jpg","31505","Miriam Jiménez Chimil","Inflorescencia"]
["Tlatlauquitepec and Yaonahuac","http://www.balsas-nahuatl.org/DEMCA-Images/Tlatlau-Yao","31506o_IMG_1338_ed-300nr_mjc.jpg","http://www.balsas-nahuatl.org/DEMCA-Images/Tlatlau-Yao/31506o_IMG_1338_ed-300nr_mjc.jpg","31506","Miriam Jiménez Chimil","Hoja; Inflorescencia; Rama o tallo"]
["Tlatlauquitepec and Yaonahuac","http://www.balsas-nahuatl.org/DEMCA-Images/Tlatlau-Yao","31506o_IMG_1348_ed-cr-300nr_mjc.jpg","http://www.balsas-nahuatl.org/DEMCA-Images/Tlatlau-Yao/31506o_IMG_1348_ed-cr-300nr_mjc.jpg","31506","Miriam Jiménez Chimil","Cáliz; Flor"]
["Tlatlauquitepec and Yaonahuac","http://www.balsas-nahuatl.org/DEMCA-Images/Tlatlau-Yao","31507o_IMG_1369_ed-300nr_mjc.jpg","http://www.balsas-nahuatl.org/DEMCA-Images/Tlatlau-Yao/31507o_IMG_1369_ed-300nr_mjc.jpg","31507","Miriam Jiménez Chimil","Hoja; Rama o tallo"]
["Tlatlauquitepec and Yaonahuac","http://www.balsas-nahuatl.org/DEMCA-Images/Tlatlau-Yao","31507o_IMG_1382_ed-300nr_mjc.jpg","http://www.balsas-nahuatl.org/DEMCA-Images/Tlatlau-Yao/31507o_IMG_1382_ed-300nr_mjc.jpg","31507","Miriam Jiménez Chimil","Fruto; Hoja"]
["Tlatlauquitepec and Yaonahuac","http://www.balsas-nahuatl.org/DEMCA-Images/Tlatlau-Yao","31507o_IMG_1397_ed-300nr_mjc.jpg","http://www.balsas-nahuatl.org/DEMCA-Images/Tlatlau-Yao/31507o_IMG_1397_ed-300nr_mjc.jpg","31507","Miriam Jiménez Chimil","Hoja; Rama o tallo"]
["Tlatlauquitepec and Yaonahuac","http://www.balsas-nahuatl.org/DEMCA-Images/Tlatlau-Yao","31508o_IMG_1399_ed-300nr_mjc.jpg","http://www.balsas-nahuatl.org/DEMCA-Images/Tlatlau-Yao/31508o_IMG_1399_ed-300nr_mjc.jpg","31508","Miriam Jiménez Chimil","Hoja; Inflorescencia; Rama o tallo"]
["Tlatlauquitepec and Yaonahuac","http://www.balsas-nahuatl.org/DEMCA-Images/Tlatlau-Yao","31508o_IMG_1417_ed-cr-300nr_mjc.jpg","http://www.balsas-nahuatl.org/DEMCA-Images/Tlatlau-Yao/31508o_IMG_1417_ed-cr-300nr_mjc.jpg","31508","Miriam Jiménez Chimil","Inflorescencia"]
["Tlatlauquitepec and Yaonahuac","http://www.balsas-nahuatl.org/DEMCA-Images/Tlatlau-Yao","31509o_IMG_1435_ed-300nr_mjc.jpg","http://www.balsas-nahuatl.org/DEMCA-Images/Tlatlau-Yao/31509o_IMG_1435_ed-300nr_mjc.jpg","31509","Miriam Jiménez Chimil","Hoja; Rama o tallo"]
["Tlatlauquitepec and Yaonahuac","http://www.balsas-nahuatl.org/DEMCA-Images/Tlatlau-Yao","31509o_IMG_1445_ed-cr-300nr_mjc.jpg","http://www.balsas-nahuatl.org/DEMCA-Images/Tlatlau-Yao/31509o_IMG_1445_ed-cr-300nr_mjc.jpg","31509","Miriam Jiménez Chimil","Flor; Rama o tallo"]
["Tlatlauquitepec and Yaonahuac","http://www.balsas-nahuatl.org/DEMCA-Images/Tlatlau-Yao","31509o_IMG_1449_ed-cr-300nr_mjc.jpg","http://www.balsas-nahuatl.org/DEMCA-Images/Tlatlau-Yao/31509o_IMG_1449_ed-cr-300nr_mjc.jpg","31509","Miriam Jiménez Chimil","Cáliz; Flor"]
["Tlatlauquitepec and Yaonahuac","http://www.balsas-nahuatl.org/DEMCA-Images/Tlatlau-Yao","31510o_IMG_1454_ed-cr-300nr_mjc.jpg","http://www.balsas-nahuatl.org/DEMCA-Images/Tlatlau-Yao/31510o_IMG_1454_ed-cr-300nr_mjc.jpg","31510","Miriam Jiménez Chimil","Hoja; Rama o tallo"]
["Tlatlauquitepec and Yaonahuac","http://www.balsas-nahuatl.org/DEMCA-Images/Tlatlau-Yao","31510o_IMG_1466_ed-cr-300nr_mjc.jpg","http://www.balsas-nahuatl.org/DEMCA-Images/Tlatlau-Yao/31510o_IMG_1466_ed-cr-300nr_mjc.jpg","31510","Miriam Jiménez Chimil","Inflorescencia; Rama o tallo"]
["Tlatlauquitepec and Yaonahuac","http://www.balsas-nahuatl.org/DEMCA-Images/Tlatlau-Yao","31510o_IMG_1468_ed-cr-300nr_mjc.jpg","http://www.balsas-nahuatl.org/DEMCA-Images/Tlatlau-Yao/31510o_IMG_1468_ed-cr-300nr_mjc.jpg","31510","Miriam Jiménez Chimil","Cáliz; Inflorescencia; Rama o tallo"]
["Tlatlauquitepec and Yaonahuac","http://www.balsas-nahuatl.org/DEMCA-Images/Tlatlau-Yao","31511o_IMG_1484_ed-300nr_mjc.jpg","http://www.balsas-nahuatl.org/DEMCA-Images/Tlatlau-Yao/31511o_IMG_1484_ed-300nr_mjc.jpg","31511","Miriam Jiménez Chimil","Hoja; Rama o tallo"]
["Tlatlauquitepec and Yaonahuac","http://www.balsas-nahuatl.org/DEMCA-Images/Tlatlau-Yao","31511o_IMG_1499_ed-cr-300nr_mjc.jpg","http://www.balsas-nahuatl.org/DEMCA-Images/Tlatlau-Yao/31511o_IMG_1499_ed-cr-300nr_mjc.jpg","31511","Miriam Jiménez Chimil","Cáliz; Flor"]
["Tlatlauquitepec and Yaonahuac","http://www.balsas-nahuatl.org/DEMCA-Images/Tlatlau-Yao","31511o_IMG_1504_ed-cr-300nr_mjc.jpg","http://www.balsas-nahuatl.org/DEMCA-Images/Tlatlau-Yao/31511o_IMG_1504_ed-cr-300nr_mjc.jpg","31511","Miriam Jiménez Chimil","Inflorescencia; Rama o tallo"]
["Tlatlauquitepec and Yaonahuac","http://www.balsas-nahuatl.org/DEMCA-Images/Tlatlau-Yao","31512o_IMG_1509_ed-300nr_mjc.jpg","http://www.balsas-nahuatl.org/DEMCA-Images/Tlatlau-Yao/31512o_IMG_1509_ed-300nr_mjc.jpg","31512","Miriam Jiménez Chimil","Hoja; Planta entera"]
["Tlatlauquitepec and Yaonahuac","http://www.balsas-nahuatl.org/DEMCA-Images/Tlatlau-Yao","31512o_IMG_1514_ed-300nr_mjc.jpg","http://www.balsas-nahuatl.org/DEMCA-Images/Tlatlau-Yao/31512o_IMG_1514_ed-300nr_mjc.jpg","31512","Miriam Jiménez Chimil","Flor; Rama o tallo"]
["Tlatlauquitepec and Yaonahuac","http://www.balsas-nahuatl.org/DEMCA-Images/Tlatlau-Yao","31512o_IMG_1521_ed-cr-300nr_mjc.jpg","http://www.balsas-nahuatl.org/DEMCA-Images/Tlatlau-Yao/31512o_IMG_1521_ed-cr-300nr_mjc.jpg","31512","Miriam Jiménez Chimil","Flor; Fruto"]
["Tlatlauquitepec and Yaonahuac","http://www.balsas-nahuatl.org/DEMCA-Images/Tlatlau-Yao","31513o_IMG_1538_ed-cr-300nr_mjc.jpg","http://www.balsas-nahuatl.org/DEMCA-Images/Tlatlau-Yao/31513o_IMG_1538_ed-cr-300nr_mjc.jpg","31513","Miriam Jiménez Chimil","Hoja; Inflorescencia; Rama o tallo"]
["Tlatlauquitepec and Yaonahuac","http://www.balsas-nahuatl.org/DEMCA-Images/Tlatlau-Yao","31513o_IMG_1545_ed-cr-300nr_mjc.jpg","http://www.balsas-nahuatl.org/DEMCA-Images/Tlatlau-Yao/31513o_IMG_1545_ed-cr-300nr_mjc.jpg","31513","Miriam Jiménez Chimil","Inflorescencia"]
["Tlatlauquitepec and Yaonahuac","http://www.balsas-nahuatl.org/DEMCA-Images/Tlatlau-Yao","31513o_IMG_1550_ed-cr-300nr_mjc.jpg","http://www.balsas-nahuatl.org/DEMCA-Images/Tlatlau-Yao/31513o_IMG_1550_ed-cr-300nr_mjc.jpg","31513","Miriam Jiménez Chimil","Inflorescencia"]
["Tlatlauquitepec and Yaonahuac","http://www.balsas-nahuatl.org/DEMCA-Images/Tlatlau-Yao","31514o_IMG_1556_ed-300nr_mjc.jpg","http://www.balsas-nahuatl.org/DEMCA-Images/Tlatlau-Yao/31514o_IMG_1556_ed-300nr_mjc.jpg","31514","Miriam Jiménez Chimil","Hoja; Inflorescencia; Rama o tallo"]
["Tlatlauquitepec and Yaonahuac","http://www.balsas-nahuatl.org/DEMCA-Images/Tlatlau-Yao","31514o_IMG_1565_ed-cr-300nr_mjc.jpg","http://www.balsas-nahuatl.org/DEMCA-Images/Tlatlau-Yao/31514o_IMG_1565_ed-cr-300nr_mjc.jpg","31514","Miriam Jiménez Chimil","Inflorescencia"]
["Tlatlauquitepec and Yaonahuac","http://www.balsas-nahuatl.org/DEMCA-Images/Tlatlau-Yao","31514o_IMG_1568_ed-cr-300nr_mjc.jpg","http://www.balsas-nahuatl.org/DEMCA-Images/Tlatlau-Yao/31514o_IMG_1568_ed-cr-300nr_mjc.jpg","31514","Miriam Jiménez Chimil","Inflorescencia"]
["Tlatlauquitepec and Yaonahuac","http://www.balsas-nahuatl.org/DEMCA-Images/Tlatlau-Yao","31515o_IMG_1586_ed-300nr_mjc.jpg","http://www.balsas-nahuatl.org/DEMCA-Images/Tlatlau-Yao/31515o_IMG_1586_ed-300nr_mjc.jpg","31515","Miriam Jiménez Chimil","Hoja; Rama o tallo"]
["Tlatlauquitepec and Yaonahuac","http://www.balsas-nahuatl.org/DEMCA-Images/Tlatlau-Yao","31515o_IMG_1593_ed-cr-300nr_mjc.jpg","http://www.balsas-nahuatl.org/DEMCA-Images/Tlatlau-Yao/31515o_IMG_1593_ed-cr-300nr_mjc.jpg","31515","Miriam Jiménez Chimil","Inflorescencia"]
["Tlatlauquitepec and Yaonahuac","http://www.balsas-nahuatl.org/DEMCA-Images/Tlatlau-Yao","31515o_IMG_1595_ed-cr-300nr_mjc.jpg","http://www.balsas-nahuatl.org/DEMCA-Images/Tlatlau-Yao/31515o_IMG_1595_ed-cr-300nr_mjc.jpg","31515","Miriam Jiménez Chimil","Cáliz; Flor"]
["Tlatlauquitepec and Yaonahuac","http://www.balsas-nahuatl.org/DEMCA-Images/Tlatlau-Yao","31516o_IMG_1604_ed-300nr_mjc.jpg","http://www.balsas-nahuatl.org/DEMCA-Images/Tlatlau-Yao/31516o_IMG_1604_ed-300nr_mjc.jpg","31516","Miriam Jiménez Chimil","Hoja; Rama o tallo"]
["Tlatlauquitepec and Yaonahuac","http://www.balsas-nahuatl.org/DEMCA-Images/Tlatlau-Yao","31516o_IMG_1611_ed-cr-300nr_mjc.jpg","http://www.balsas-nahuatl.org/DEMCA-Images/Tlatlau-Yao/31516o_IMG_1611_ed-cr-300nr_mjc.jpg","31516","Miriam Jiménez Chimil","Inflorescencia"]
["Tlatlauquitepec and Yaonahuac","http://www.balsas-nahuatl.org/DEMCA-Images/Tlatlau-Yao","31516o_IMG_1620_ed-cr-300nr_mjc.jpg","http://www.balsas-nahuatl.org/DEMCA-Images/Tlatlau-Yao/31516o_IMG_1620_ed-cr-300nr_mjc.jpg","31516","Miriam Jiménez Chimil","Inflorescencia"]
["Tlatlauquitepec and Yaonahuac","http://www.balsas-nahuatl.org/DEMCA-Images/Tlatlau-Yao","31517o_IMG_1637_ed-300nr_mjc.jpg","http://www.balsas-nahuatl.org/DEMCA-Images/Tlatlau-Yao/31517o_IMG_1637_ed-300nr_mjc.jpg","31517","Miriam Jiménez Chimil","Hoja; Inflorescencia; Rama o tallo"]
["Tlatlauquitepec and Yaonahuac","http://www.balsas-nahuatl.org/DEMCA-Images/Tlatlau-Yao","31517o_IMG_1646_ed-cr-300nr_mjc.jpg","http://www.balsas-nahuatl.org/DEMCA-Images/Tlatlau-Yao/31517o_IMG_1646_ed-cr-300nr_mjc.jpg","31517","Miriam Jiménez Chimil","Inflorescencia"]
["Tlatlauquitepec and Yaonahuac","http://www.balsas-nahuatl.org/DEMCA-Images/Tlatlau-Yao","31517o_IMG_1651_ed-cr-300nr_mjc.jpg","http://www.balsas-nahuatl.org/DEMCA-Images/Tlatlau-Yao/31517o_IMG_1651_ed-cr-300nr_mjc.jpg","31517","Miriam Jiménez Chimil","Cáliz; Inflorescencia"]
["Tlatlauquitepec and Yaonahuac","http://www.balsas-nahuatl.org/DEMCA-Images/Tlatlau-Yao","31518o_IMG_1661_ed-cr-300nr_mjc.jpg","http://www.balsas-nahuatl.org/DEMCA-Images/Tlatlau-Yao/31518o_IMG_1661_ed-cr-300nr_mjc.jpg","31518","Miriam Jiménez Chimil","Hoja; Rama o tallo"]
["Tlatlauquitepec and Yaonahuac","http://www.balsas-nahuatl.org/DEMCA-Images/Tlatlau-Yao","31518o_IMG_1671_ed-cr-300nr_mjc.jpg","http://www.balsas-nahuatl.org/DEMCA-Images/Tlatlau-Yao/31518o_IMG_1671_ed-cr-300nr_mjc.jpg","31518","Miriam Jiménez Chimil","Flor; Rama o tallo"]
["Tlatlauquitepec and Yaonahuac","http://www.balsas-nahuatl.org/DEMCA-Images/Tlatlau-Yao","31519o_IMG_1680_ed-300nr_mjc.jpg","http://www.balsas-nahuatl.org/DEMCA-Images/Tlatlau-Yao/31519o_IMG_1680_ed-300nr_mjc.jpg","31519","Miriam Jiménez Chimil","Hoja; Inflorescencia; Rama o tallo"]
["Tlatlauquitepec and Yaonahuac","http://www.balsas-nahuatl.org/DEMCA-Images/Tlatlau-Yao","31519o_IMG_1692_ed-cr-300nr_mjc.jpg","http://www.balsas-nahuatl.org/DEMCA-Images/Tlatlau-Yao/31519o_IMG_1692_ed-cr-300nr_mjc.jpg","31519","Miriam Jiménez Chimil","Inflorescencia"]
["Tlatlauquitepec and Yaonahuac","http://www.balsas-nahuatl.org/DEMCA-Images/Tlatlau-Yao","31519o_IMG_1702_ed-cr-300nr_mjc.jpg","http://www.balsas-nahuatl.org/DEMCA-Images/Tlatlau-Yao/31519o_IMG_1702_ed-cr-300nr_mjc.jpg","31519","Miriam Jiménez Chimil","Cáliz; Rama o tallo"]
["Tlatlauquitepec and Yaonahuac","http://www.balsas-nahuatl.org/DEMCA-Images/Tlatlau-Yao","31520o_IMG_1716_ed-300nr_mjc.jpg","http://www.balsas-nahuatl.org/DEMCA-Images/Tlatlau-Yao/31520o_IMG_1716_ed-300nr_mjc.jpg","31520","Miriam Jiménez Chimil","Hoja; Rama o tallo"]
["Tlatlauquitepec and Yaonahuac","http://www.balsas-nahuatl.org/DEMCA-Images/Tlatlau-Yao","31520o_IMG_1723_ed-cr-300nr_mjc.jpg","http://www.balsas-nahuatl.org/DEMCA-Images/Tlatlau-Yao/31520o_IMG_1723_ed-cr-300nr_mjc.jpg","31520","Miriam Jiménez Chimil","Fruto; Rama o tallo"]
["Tlatlauquitepec and Yaonahuac","http://www.balsas-nahuatl.org/DEMCA-Images/Tlatlau-Yao","31520o_IMG_1729_ed-cr-300nr_mjc.jpg","http://www.balsas-nahuatl.org/DEMCA-Images/Tlatlau-Yao/31520o_IMG_1729_ed-cr-300nr_mjc.jpg","31520","Miriam Jiménez Chimil","Fruto; Rama o tallo"]
["Tlatlauquitepec and Yaonahuac","http://www.balsas-nahuatl.org/DEMCA-Images/Tlatlau-Yao","31521o_IMG_1733_ed-300nr_mjc.jpg","http://www.balsas-nahuatl.org/DEMCA-Images/Tlatlau-Yao/31521o_IMG_1733_ed-300nr_mjc.jpg","31521","Miriam Jiménez Chimil","Hoja; Rama o tallo"]
["Tlatlauquitepec and Yaonahuac","http://www.balsas-nahuatl.org/DEMCA-Images/Tlatlau-Yao","31521o_IMG_1744_ed-cr-300nr_mjc.jpg","http://www.balsas-nahuatl.org/DEMCA-Images/Tlatlau-Yao/31521o_IMG_1744_ed-cr-300nr_mjc.jpg","31521","Miriam Jiménez Chimil","Inflorescencia"]
["Tlatlauquitepec and Yaonahuac","http://www.balsas-nahuatl.org/DEMCA-Images/Tlatlau-Yao","31521o_IMG_1749_ed-cr-300nr_mjc.jpg","http://www.balsas-nahuatl.org/DEMCA-Images/Tlatlau-Yao/31521o_IMG_1749_ed-cr-300nr_mjc.jpg","31521","Miriam Jiménez Chimil","Cáliz; Inflorescencia"]
["Tlatlauquitepec and Yaonahuac","http://www.balsas-nahuatl.org/DEMCA-Images/Tlatlau-Yao","31522o_IMG_1763_ed-300nr_mjc.jpg","http://www.balsas-nahuatl.org/DEMCA-Images/Tlatlau-Yao/31522o_IMG_1763_ed-300nr_mjc.jpg","31522","Miriam Jiménez Chimil","Hoja; Rama o tallo"]
["Tlatlauquitepec and Yaonahuac","http://www.balsas-nahuatl.org/DEMCA-Images/Tlatlau-Yao","31522o_IMG_1767_ed-300nr_mjc.jpg","http://www.balsas-nahuatl.org/DEMCA-Images/Tlatlau-Yao/31522o_IMG_1767_ed-300nr_mjc.jpg","31522","Miriam Jiménez Chimil","Hoja; Rama o tallo"]
["Tlatlauquitepec and Yaonahuac","http://www.balsas-nahuatl.org/DEMCA-Images/Tlatlau-Yao","31522o_IMG_1779_ed-300nr_mjc.jpg","http://www.balsas-nahuatl.org/DEMCA-Images/Tlatlau-Yao/31522o_IMG_1779_ed-300nr_mjc.jpg","31522","Miriam Jiménez Chimil","Inflorescencia; Rama o tallo"]
["Tlatlauquitepec and Yaonahuac","http://www.balsas-nahuatl.org/DEMCA-Images/Tlatlau-Yao","31522o_IMG_1780_ed-300nr_mjc.jpg","http://www.balsas-nahuatl.org/DEMCA-Images/Tlatlau-Yao/31522o_IMG_1780_ed-300nr_mjc.jpg","31522","Miriam Jiménez Chimil","Inflorescencia"]
["Tlatlauquitepec and Yaonahuac","http://www.balsas-nahuatl.org/DEMCA-Images/Tlatlau-Yao","31523o_IMG_1785_ed-cr-300nr_mjc.jpg","http://www.balsas-nahuatl.org/DEMCA-Images/Tlatlau-Yao/31523o_IMG_1785_ed-cr-300nr_mjc.jpg","31523","Miriam Jiménez Chimil","Hoja; Rama o tallo"]
["Tlatlauquitepec and Yaonahuac","http://www.balsas-nahuatl.org/DEMCA-Images/Tlatlau-Yao","31523o_IMG_1796_ed-cr-300nr_mjc.jpg","http://www.balsas-nahuatl.org/DEMCA-Images/Tlatlau-Yao/31523o_IMG_1796_ed-cr-300nr_mjc.jpg","31523","Miriam Jiménez Chimil","Flor; Rama o tallo"]
["Tlatlauquitepec and Yaonahuac","http://www.balsas-nahuatl.org/DEMCA-Images/Tlatlau-Yao","31523o_IMG_1800_ed-cr-300nr_mjc.jpg","http://www.balsas-nahuatl.org/DEMCA-Images/Tlatlau-Yao/31523o_IMG_1800_ed-cr-300nr_mjc.jpg","31523","Miriam Jiménez Chimil","Flor; Rama o tallo"]
["Tlatlauquitepec and Yaonahuac","http://www.balsas-nahuatl.org/DEMCA-Images/Tlatlau-Yao","31528o_IMG_1978_ed-300nr_mjc.jpg","http://www.balsas-nahuatl.org/DEMCA-Images/Tlatlau-Yao/31528o_IMG_1978_ed-300nr_mjc.jpg","31528","Miriam Jiménez Chimil","Hoja; Rama o tallo"]
["Tlatlauquitepec and Yaonahuac","http://www.balsas-nahuatl.org/DEMCA-Images/Tlatlau-Yao","31528o_IMG_1994_ed-300nr_mjc.jpg","http://www.balsas-nahuatl.org/DEMCA-Images/Tlatlau-Yao/31528o_IMG_1994_ed-300nr_mjc.jpg","31528","Miriam Jiménez Chimil","Flor"]
["Tlatlauquitepec and Yaonahuac","http://www.balsas-nahuatl.org/DEMCA-Images/Tlatlau-Yao","31528o_IMG_2009_ed-300nr_mjc.jpg","http://www.balsas-nahuatl.org/DEMCA-Images/Tlatlau-Yao/31528o_IMG_2009_ed-300nr_mjc.jpg","31528","Miriam Jiménez Chimil","Flor"]
["Tlatlauquitepec and Yaonahuac","http://www.balsas-nahuatl.org/DEMCA-Images/Tlatlau-Yao","31529o_IMG_2023_ed-300nr_mjc.jpg",{"$f":"CONCATENATE(B195,\"/\",C195)","v":"http://www.balsas-nahuatl.org/DEMCA-Images/Tlatlau-Yao/31529o_IMG_2023_ed-300nr_mjc.jpg"},"31529","Miriam Jiménez Chimil","Hoja; Rama o tallo"]
["Tlatlauquitepec and Yaonahuac","http://www.balsas-nahuatl.org/DEMCA-Images/Tlatlau-Yao","31529o_IMG_2030_ed-cr-300nr_mjc.jpg","http://www.balsas-nahuatl.org/DEMCA-Images/Tlatlau-Yao/31529o_IMG_2030_ed-cr-300nr_mjc.jpg","31529","Miriam Jiménez Chimil","Flor; Rama o tallo"]
["Tlatlauquitepec and Yaonahuac","http://www.balsas-nahuatl.org/DEMCA-Images/Tlatlau-Yao","31529o_IMG_2032_ed-cr-300nr_mjc.jpg","http://www.balsas-nahuatl.org/DEMCA-Images/Tlatlau-Yao/31529o_IMG_2032_ed-cr-300nr_mjc.jpg","31529","Miriam Jiménez Chimil","Flor; Rama o tallo"]
["Tlatlauquitepec and Yaonahuac","http://www.balsas-nahuatl.org/DEMCA-Images/Tlatlau-Yao","31529o_IMG_2038_ed-cr-300nr_mjc.jpg","http://www.balsas-nahuatl.org/DEMCA-Images/Tlatlau-Yao/31529o_IMG_2038_ed-cr-300nr_mjc.jpg","31529","Miriam Jiménez Chimil","Flor; Rama o tallo"]
["Tlatlauquitepec and Yaonahuac","http://www.balsas-nahuatl.org/DEMCA-Images/Tlatlau-Yao","31530o_IMG_2047_ed-300nr_mjc.jpg","http://www.balsas-nahuatl.org/DEMCA-Images/Tlatlau-Yao/31530o_IMG_2047_ed-300nr_mjc.jpg","31530","Miriam Jiménez Chimil","Hoja; Rama o tallo"]
["Tlatlauquitepec and Yaonahuac","http://www.balsas-nahuatl.org/DEMCA-Images/Tlatlau-Yao","31530o_IMG_2061_ed-cr-300nr_mjc.jpg","http://www.balsas-nahuatl.org/DEMCA-Images/Tlatlau-Yao/31530o_IMG_2061_ed-cr-300nr_mjc.jpg","31530","Miriam Jiménez Chimil","Flor; Rama o tallo"]
["Tlatlauquitepec and Yaonahuac","http://www.balsas-nahuatl.org/DEMCA-Images/Tlatlau-Yao","31530o_IMG_2084_ed-300nr_mjc.jpg","http://www.balsas-nahuatl.org/DEMCA-Images/Tlatlau-Yao/31530o_IMG_2084_ed-300nr_mjc.jpg","31530","Miriam Jiménez Chimil","Hoja; Rama o tallo"]
["Tlatlauquitepec and Yaonahuac","http://www.balsas-nahuatl.org/DEMCA-Images/Tlatlau-Yao","31531o_IMG_2088_ed-300nr_mjc.jpg","http://www.balsas-nahuatl.org/DEMCA-Images/Tlatlau-Yao/31531o_IMG_2088_ed-300nr_mjc.jpg","31531","Miriam Jiménez Chimil","Hoja; Rama o tallo"]
["Tlatlauquitepec and Yaonahuac","http://www.balsas-nahuatl.org/DEMCA-Images/Tlatlau-Yao","31531o_IMG_2099_ed-300nr_mjc.jpg","http://www.balsas-nahuatl.org/DEMCA-Images/Tlatlau-Yao/31531o_IMG_2099_ed-300nr_mjc.jpg","31531","Miriam Jiménez Chimil","Flor; Rama o tallo"]
["Tlatlauquitepec and Yaonahuac","http://www.balsas-nahuatl.org/DEMCA-Images/Tlatlau-Yao","31531o_IMG_2105_ed-300nr_mjc.jpg","http://www.balsas-nahuatl.org/DEMCA-Images/Tlatlau-Yao/31531o_IMG_2105_ed-300nr_mjc.jpg","31531","Miriam Jiménez Chimil","Cáliz; Flor"]
["Tlatlauquitepec and Yaonahuac","http://www.balsas-nahuatl.org/DEMCA-Images/Tlatlau-Yao","31532o_IMG_2125_ed-cr-300nr_mjc.jpg","http://www.balsas-nahuatl.org/DEMCA-Images/Tlatlau-Yao/31532o_IMG_2125_ed-cr-300nr_mjc.jpg","31532","Miriam Jiménez Chimil","Hoja; Inflorescencia; Planta entera"]
["Tlatlauquitepec and Yaonahuac","http://www.balsas-nahuatl.org/DEMCA-Images/Tlatlau-Yao","31532o_IMG_8655_ed-300nr_mjc.jpg","http://www.balsas-nahuatl.org/DEMCA-Images/Tlatlau-Yao/31532o_IMG_8655_ed-300nr_mjc.jpg","31532","Miriam Jiménez Chimil","Hoja; Rama o tallo"]
["Tlatlauquitepec and Yaonahuac","http://www.balsas-nahuatl.org/DEMCA-Images/Tlatlau-Yao","31532o_IMG_8661_ed-300nr_mjc.jpg","http://www.balsas-nahuatl.org/DEMCA-Images/Tlatlau-Yao/31532o_IMG_8661_ed-300nr_mjc.jpg","31532","Miriam Jiménez Chimil","Flor; Rama o tallo"]
["Tlatlauquitepec and Yaonahuac","http://www.balsas-nahuatl.org/DEMCA-Images/Tlatlau-Yao","31533o_IMG_8672_ed-300nr_mjc.jpg","http://www.balsas-nahuatl.org/DEMCA-Images/Tlatlau-Yao/31533o_IMG_8672_ed-300nr_mjc.jpg","31533","Miriam Jiménez Chimil","Hoja; Rama o tallo"]
["Tlatlauquitepec and Yaonahuac","http://www.balsas-nahuatl.org/DEMCA-Images/Tlatlau-Yao","31533o_IMG_8679_ed-cr-300nr_mjc.jpg","http://www.balsas-nahuatl.org/DEMCA-Images/Tlatlau-Yao/31533o_IMG_8679_ed-cr-300nr_mjc.jpg","31533","Miriam Jiménez Chimil","Flor; Rama o tallo"]
["Tlatlauquitepec and Yaonahuac","http://www.balsas-nahuatl.org/DEMCA-Images/Tlatlau-Yao","31533o_IMG_8689_ed-cr-300nr_mjc.jpg","http://www.balsas-nahuatl.org/DEMCA-Images/Tlatlau-Yao/31533o_IMG_8689_ed-cr-300nr_mjc.jpg","31533","Miriam Jiménez Chimil","Flor"]
["Tlatlauquitepec and Yaonahuac","http://www.balsas-nahuatl.org/DEMCA-Images/Tlatlau-Yao","31534o_IMG_8695_ed-300nr_mjc.jpg","http://www.balsas-nahuatl.org/DEMCA-Images/Tlatlau-Yao/31534o_IMG_8695_ed-300nr_mjc.jpg","31534","Miriam Jiménez Chimil","Hoja; Inflorescencia; Rama o tallo"]
["Tlatlauquitepec and Yaonahuac","http://www.balsas-nahuatl.org/DEMCA-Images/Tlatlau-Yao","31534o_IMG_8704_ed-300nr_mjc.jpg","http://www.balsas-nahuatl.org/DEMCA-Images/Tlatlau-Yao/31534o_IMG_8704_ed-300nr_mjc.jpg","31534","Miriam Jiménez Chimil","Flor; Rama o tallo"]
["Tlatlauquitepec and Yaonahuac","http://www.balsas-nahuatl.org/DEMCA-Images/Tlatlau-Yao","31534o_IMG_8710_ed-300nr_mjc.jpg","http://www.balsas-nahuatl.org/DEMCA-Images/Tlatlau-Yao/31534o_IMG_8710_ed-300nr_mjc.jpg","31534","Miriam Jiménez Chimil","Cáliz; Flor; Rama o tallo"]
["Tlatlauquitepec and Yaonahuac","http://www.balsas-nahuatl.org/DEMCA-Images/Tlatlau-Yao","31535o_IMG_8721_ed-300nr_mjc.jpg","http://www.balsas-nahuatl.org/DEMCA-Images/Tlatlau-Yao/31535o_IMG_8721_ed-300nr_mjc.jpg","31535","Miriam Jiménez Chimil","Hoja; Rama o tallo"]
["Tlatlauquitepec and Yaonahuac","http://www.balsas-nahuatl.org/DEMCA-Images/Tlatlau-Yao","31535o_IMG_8736_ed-300nr_mjc.jpg","http://www.balsas-nahuatl.org/DEMCA-Images/Tlatlau-Yao/31535o_IMG_8736_ed-300nr_mjc.jpg","31535","Miriam Jiménez Chimil","Flor; Rama o tallo"]
["Tlatlauquitepec and Yaonahuac","http://www.balsas-nahuatl.org/DEMCA-Images/Tlatlau-Yao","31535o_IMG_8750_ed-300nr_mjc.jpg","http://www.balsas-nahuatl.org/DEMCA-Images/Tlatlau-Yao/31535o_IMG_8750_ed-300nr_mjc.jpg","31535","Miriam Jiménez Chimil","Cáliz; Flor; Rama o tallo"]
["Tlatlauquitepec and Yaonahuac","http://www.balsas-nahuatl.org/DEMCA-Images/Tlatlau-Yao","31536o_IMG_8758_ed-300nr_mjc.jpg","http://www.balsas-nahuatl.org/DEMCA-Images/Tlatlau-Yao/31536o_IMG_8758_ed-300nr_mjc.jpg","31536","Miriam Jiménez Chimil","Hoja; Inflorescencia; Planta entera"]
["Tlatlauquitepec and Yaonahuac","http://www.balsas-nahuatl.org/DEMCA-Images/Tlatlau-Yao","31536o_IMG_8772_ed-300nr_mjc.jpg","http://www.balsas-nahuatl.org/DEMCA-Images/Tlatlau-Yao/31536o_IMG_8772_ed-300nr_mjc.jpg","31536","Miriam Jiménez Chimil","Inflorescencia; Rama o tallo"]
["Tlatlauquitepec and Yaonahuac","http://www.balsas-nahuatl.org/DEMCA-Images/Tlatlau-Yao","31536o_IMG_8775_ed-cr-300nr_mjc.jpg","http://www.balsas-nahuatl.org/DEMCA-Images/Tlatlau-Yao/31536o_IMG_8775_ed-cr-300nr_mjc.jpg","31536","Miriam Jiménez Chimil","Flor; Rama o tallo"]
["Tlatlauquitepec and Yaonahuac","http://www.balsas-nahuatl.org/DEMCA-Images/Tlatlau-Yao","31538o_IMG_8828_ed-300nr_mjc.jpg","http://www.balsas-nahuatl.org/DEMCA-Images/Tlatlau-Yao/31538o_IMG_8828_ed-300nr_mjc.jpg","31538","Miriam Jiménez Chimil","Hoja; Rama o tallo"]
["Tlatlauquitepec and Yaonahuac","http://www.balsas-nahuatl.org/DEMCA-Images/Tlatlau-Yao","31538o_IMG_8846-ed-300nr_mjc.jpg","http://www.balsas-nahuatl.org/DEMCA-Images/Tlatlau-Yao/31538o_IMG_8846-ed-300nr_mjc.jpg","31538","Miriam Jiménez Chimil","Inflorescencia; Rama o tallo"]
["Tlatlauquitepec and Yaonahuac","http://www.balsas-nahuatl.org/DEMCA-Images/Tlatlau-Yao","31538o_IMG_8851_ed-cr-300nr_mjc.jpg","http://www.balsas-nahuatl.org/DEMCA-Images/Tlatlau-Yao/31538o_IMG_8851_ed-cr-300nr_mjc.jpg","31538","Miriam Jiménez Chimil","Inflorescencia; Rama o tallo"]
["Tlatlauquitepec and Yaonahuac","http://www.balsas-nahuatl.org/DEMCA-Images/Tlatlau-Yao","31539o_IMG_8858_ed-300nr_mjc.jpg","http://www.balsas-nahuatl.org/DEMCA-Images/Tlatlau-Yao/31539o_IMG_8858_ed-300nr_mjc.jpg","31539","Miriam Jiménez Chimil","Hoja; Rama o tallo"]
["Tlatlauquitepec and Yaonahuac","http://www.balsas-nahuatl.org/DEMCA-Images/Tlatlau-Yao","31539o_IMG_8864_ed-300nr_mjc.jpg","http://www.balsas-nahuatl.org/DEMCA-Images/Tlatlau-Yao/31539o_IMG_8864_ed-300nr_mjc.jpg","31539","Miriam Jiménez Chimil","Fruto; Rama o tallo"]
["Tlatlauquitepec and Yaonahuac","http://www.balsas-nahuatl.org/DEMCA-Images/Tlatlau-Yao","31539o_IMG_8870-ed-300nr_mjc.jpg","http://www.balsas-nahuatl.org/DEMCA-Images/Tlatlau-Yao/31539o_IMG_8870-ed-300nr_mjc.jpg","31539","Miriam Jiménez Chimil","Fruto; Rama o tallo"]
["Tlatlauquitepec and Yaonahuac","http://www.balsas-nahuatl.org/DEMCA-Images/Tlatlau-Yao","31540o_IMG_8879_ed-300nr_mjc.jpg","http://www.balsas-nahuatl.org/DEMCA-Images/Tlatlau-Yao/31540o_IMG_8879_ed-300nr_mjc.jpg","31540","Miriam Jiménez Chimil","Hoja; Rama o tallo"]
["Tlatlauquitepec and Yaonahuac","http://www.balsas-nahuatl.org/DEMCA-Images/Tlatlau-Yao","31540o_IMG_8894_ed-300nr_mjc.jpg","http://www.balsas-nahuatl.org/DEMCA-Images/Tlatlau-Yao/31540o_IMG_8894_ed-300nr_mjc.jpg","31540","Miriam Jiménez Chimil","Flor; Fruto"]
["Tlatlauquitepec and Yaonahuac","http://www.balsas-nahuatl.org/DEMCA-Images/Tlatlau-Yao","31541o_IMG_8913_ed-300nr_mjc.jpg","http://www.balsas-nahuatl.org/DEMCA-Images/Tlatlau-Yao/31541o_IMG_8913_ed-300nr_mjc.jpg","31541","Miriam Jiménez Chimil","Hoja; Rama o tallo"]
["Tlatlauquitepec and Yaonahuac","http://www.balsas-nahuatl.org/DEMCA-Images/Tlatlau-Yao","31541o_IMG_8922_ed-300nr_mjc.jpg","http://www.balsas-nahuatl.org/DEMCA-Images/Tlatlau-Yao/31541o_IMG_8922_ed-300nr_mjc.jpg","31541","Miriam Jiménez Chimil","Flor; Rama o tallo"]
["Tlatlauquitepec and Yaonahuac","http://www.balsas-nahuatl.org/DEMCA-Images/Tlatlau-Yao","31541o_IMG_8933_ed-300nr_mjc.jpg","http://www.balsas-nahuatl.org/DEMCA-Images/Tlatlau-Yao/31541o_IMG_8933_ed-300nr_mjc.jpg","31541","Miriam Jiménez Chimil","Flor; Rama o tallo"]
["Tlatlauquitepec and Yaonahuac","http://www.balsas-nahuatl.org/DEMCA-Images/Tlatlau-Yao","31541o_IMG_8946_ed-300nr_mjc.jpg","http://www.balsas-nahuatl.org/DEMCA-Images/Tlatlau-Yao/31541o_IMG_8946_ed-300nr_mjc.jpg","31541","Miriam Jiménez Chimil","Fruto; Rama o tallo"]
["Tlatlauquitepec and Yaonahuac","http://www.balsas-nahuatl.org/DEMCA-Images/Tlatlau-Yao","31542o_IMG_8955_ed-300nr_mjc.jpg","http://www.balsas-nahuatl.org/DEMCA-Images/Tlatlau-Yao/31542o_IMG_8955_ed-300nr_mjc.jpg","31542","Miriam Jiménez Chimil","Hoja; Rama o tallo"]
["Tlatlauquitepec and Yaonahuac","http://www.balsas-nahuatl.org/DEMCA-Images/Tlatlau-Yao","31542o_IMG_8969_ed-300nr_mjc.jpg","http://www.balsas-nahuatl.org/DEMCA-Images/Tlatlau-Yao/31542o_IMG_8969_ed-300nr_mjc.jpg","31542","Miriam Jiménez Chimil","Flor; Rama o tallo"]
["Tlatlauquitepec and Yaonahuac","http://www.balsas-nahuatl.org/DEMCA-Images/Tlatlau-Yao","31542o_IMG_8984_ed-300nr_mjc.jpg","http://www.balsas-nahuatl.org/DEMCA-Images/Tlatlau-Yao/31542o_IMG_8984_ed-300nr_mjc.jpg","31542","Miriam Jiménez Chimil","Cáliz; Fruto"]
["Tlatlauquitepec and Yaonahuac","http://www.balsas-nahuatl.org/DEMCA-Images/Tlatlau-Yao","31543o_IMG_9009_ed-300nr_mjc.jpg","http://www.balsas-nahuatl.org/DEMCA-Images/Tlatlau-Yao/31543o_IMG_9009_ed-300nr_mjc.jpg","31543","Miriam Jiménez Chimil","Hoja; Inflorescencia; Planta entera"]
["Tlatlauquitepec and Yaonahuac","http://www.balsas-nahuatl.org/DEMCA-Images/Tlatlau-Yao","31543o_IMG_9016_ed-300nr_mjc.jpg","http://www.balsas-nahuatl.org/DEMCA-Images/Tlatlau-Yao/31543o_IMG_9016_ed-300nr_mjc.jpg","31543","Miriam Jiménez Chimil","Inflorescencia; Rama o tallo"]
["Tlatlauquitepec and Yaonahuac","http://www.balsas-nahuatl.org/DEMCA-Images/Tlatlau-Yao","31543o_IMG_9021_ed-300nr_mjc.jpg","http://www.balsas-nahuatl.org/DEMCA-Images/Tlatlau-Yao/31543o_IMG_9021_ed-300nr_mjc.jpg","31543","Miriam Jiménez Chimil","Cáliz; Flor; Rama o tallo"]
["Tlatlauquitepec and Yaonahuac","http://www.balsas-nahuatl.org/DEMCA-Images/Tlatlau-Yao","31544o_IMG_9038_ed-300nr_mjc.jpg","http://www.balsas-nahuatl.org/DEMCA-Images/Tlatlau-Yao/31544o_IMG_9038_ed-300nr_mjc.jpg","31544","Miriam Jiménez Chimil","Hoja; Inflorescencia; Planta entera"]
["Tlatlauquitepec and Yaonahuac","http://www.balsas-nahuatl.org/DEMCA-Images/Tlatlau-Yao","31544o_IMG_9050_ed-cr-300nr_mjc.jpg","http://www.balsas-nahuatl.org/DEMCA-Images/Tlatlau-Yao/31544o_IMG_9050_ed-cr-300nr_mjc.jpg","31544","Miriam Jiménez Chimil","Flor; Rama o tallo"]
["Tlatlauquitepec and Yaonahuac","http://www.balsas-nahuatl.org/DEMCA-Images/Tlatlau-Yao","31544o_IMG_9058_ed-cr-300nr_mjc.jpg","http://www.balsas-nahuatl.org/DEMCA-Images/Tlatlau-Yao/31544o_IMG_9058_ed-cr-300nr_mjc.jpg","31544","Miriam Jiménez Chimil","Flor; Rama o tallo"]
["Tlatlauquitepec and Yaonahuac","http://www.balsas-nahuatl.org/DEMCA-Images/Tlatlau-Yao","31545o_IMG_9074_ed-300nr_mjc.jpg","http://www.balsas-nahuatl.org/DEMCA-Images/Tlatlau-Yao/31545o_IMG_9074_ed-300nr_mjc.jpg","31545","Miriam Jiménez Chimil","Hoja; Inflorescencia; Rama o tallo"]
["Tlatlauquitepec and Yaonahuac","http://www.balsas-nahuatl.org/DEMCA-Images/Tlatlau-Yao","31545o_IMG_9077_ed-300nr_mjc.jpg","http://www.balsas-nahuatl.org/DEMCA-Images/Tlatlau-Yao/31545o_IMG_9077_ed-300nr_mjc.jpg","31545","Miriam Jiménez Chimil","Flor; Rama o tallo"]
["Tlatlauquitepec and Yaonahuac","http://www.balsas-nahuatl.org/DEMCA-Images/Tlatlau-Yao","31545o_IMG_9083_ed-cr-300nr_mjc.jpg","http://www.balsas-nahuatl.org/DEMCA-Images/Tlatlau-Yao/31545o_IMG_9083_ed-cr-300nr_mjc.jpg","31545","Miriam Jiménez Chimil","Flor"]
["Tlatlauquitepec and Yaonahuac","http://www.balsas-nahuatl.org/DEMCA-Images/Tlatlau-Yao","31545o_IMG_9088_ed-300nr_mjc.jpg","http://www.balsas-nahuatl.org/DEMCA-Images/Tlatlau-Yao/31545o_IMG_9088_ed-300nr_mjc.jpg","31545","Miriam Jiménez Chimil","Flor; Rama o tallo"]
["Tlatlauquitepec and Yaonahuac","http://www.balsas-nahuatl.org/DEMCA-Images/Tlatlau-Yao","31545o_IMG_9088_ed-cr-300nr_mjc.jpg","http://www.balsas-nahuatl.org/DEMCA-Images/Tlatlau-Yao/31545o_IMG_9088_ed-cr-300nr_mjc.jpg","31545","Miriam Jiménez Chimil","Cáliz; Flor"]
["Tlatlauquitepec and Yaonahuac","http://www.balsas-nahuatl.org/DEMCA-Images/Tlatlau-Yao","31546o_IMG_9095_ed-300nr_mjc.jpg","http://www.balsas-nahuatl.org/DEMCA-Images/Tlatlau-Yao/31546o_IMG_9095_ed-300nr_mjc.jpg","31546","Miriam Jiménez Chimil","Hoja; Rama o tallo"]
["Tlatlauquitepec and Yaonahuac","http://www.balsas-nahuatl.org/DEMCA-Images/Tlatlau-Yao","31546o_IMG_9102_ed-300nr_mjc.jpg","http://www.balsas-nahuatl.org/DEMCA-Images/Tlatlau-Yao/31546o_IMG_9102_ed-300nr_mjc.jpg","31546","Miriam Jiménez Chimil","Flor"]
["Tlatlauquitepec and Yaonahuac","http://www.balsas-nahuatl.org/DEMCA-Images/Tlatlau-Yao","31546o_IMG_9119_ed-300nr_mjc.jpg","http://www.balsas-nahuatl.org/DEMCA-Images/Tlatlau-Yao/31546o_IMG_9119_ed-300nr_mjc.jpg","31546","Miriam Jiménez Chimil","Hoja; Rama o tallo"]
["Tlatlauquitepec and Yaonahuac","http://www.balsas-nahuatl.org/DEMCA-Images/Tlatlau-Yao","31547o_IMG_9128_ed-300nr_mjc.jpg","http://www.balsas-nahuatl.org/DEMCA-Images/Tlatlau-Yao/31547o_IMG_9128_ed-300nr_mjc.jpg","31547","Miriam Jiménez Chimil","Hoja; Inflorescencia; Rama o tallo"]
["Tlatlauquitepec and Yaonahuac","http://www.balsas-nahuatl.org/DEMCA-Images/Tlatlau-Yao","31547o_IMG_9140_ed-cr-300nr_mjc.jpg","http://www.balsas-nahuatl.org/DEMCA-Images/Tlatlau-Yao/31547o_IMG_9140_ed-cr-300nr_mjc.jpg","31547","Miriam Jiménez Chimil","Cáliz; Flor"]
["Tlatlauquitepec and Yaonahuac","http://www.balsas-nahuatl.org/DEMCA-Images/Tlatlau-Yao","31547o_IMG_9145_ed-cr-300nr_mjc.jpg","http://www.balsas-nahuatl.org/DEMCA-Images/Tlatlau-Yao/31547o_IMG_9145_ed-cr-300nr_mjc.jpg","31547","Miriam Jiménez Chimil","Flor"]
["Tlatlauquitepec and Yaonahuac","http://www.balsas-nahuatl.org/DEMCA-Images/Tlatlau-Yao","31555o_IMG_9529_ed-cr-300nr_mjc.jpg","http://www.balsas-nahuatl.org/DEMCA-Images/Tlatlau-Yao/31555o_IMG_9529_ed-cr-300nr_mjc.jpg","31555","Miriam Jiménez Chimil","Flor; Hoja; Rama o tallo"]
["Tlatlauquitepec and Yaonahuac","http://www.balsas-nahuatl.org/DEMCA-Images/Tlatlau-Yao","31555o_IMG_9550_ed-300nr_mjc.jpg","http://www.balsas-nahuatl.org/DEMCA-Images/Tlatlau-Yao/31555o_IMG_9550_ed-300nr_mjc.jpg","31555","Miriam Jiménez Chimil","Cáliz; Flor; Hoja"]
["Tlatlauquitepec and Yaonahuac","http://www.balsas-nahuatl.org/DEMCA-Images/Tlatlau-Yao","31556o_IMG_9564_ed-300nr_mjc.jpg","http://www.balsas-nahuatl.org/DEMCA-Images/Tlatlau-Yao/31556o_IMG_9564_ed-300nr_mjc.jpg","31556","Miriam Jiménez Chimil","Hoja; Rama o tallo"]
["Tlatlauquitepec and Yaonahuac","http://www.balsas-nahuatl.org/DEMCA-Images/Tlatlau-Yao","31556o_IMG_9574_ed-cr-300nr_mjc.jpg","http://www.balsas-nahuatl.org/DEMCA-Images/Tlatlau-Yao/31556o_IMG_9574_ed-cr-300nr_mjc.jpg","31556","Miriam Jiménez Chimil","Flor; Rama o tallo"]
["Tlatlauquitepec and Yaonahuac","http://www.balsas-nahuatl.org/DEMCA-Images/Tlatlau-Yao","31556o_IMG_9587_ed-300nr_mjc.jpg","http://www.balsas-nahuatl.org/DEMCA-Images/Tlatlau-Yao/31556o_IMG_9587_ed-300nr_mjc.jpg","31556","Miriam Jiménez Chimil","Cáliz; Flor; Rama o tallo"]
["Tlatlauquitepec and Yaonahuac","http://www.balsas-nahuatl.org/DEMCA-Images/Tlatlau-Yao","31557o_IMG_9624_ed-300nr_mjc.jpg","http://www.balsas-nahuatl.org/DEMCA-Images/Tlatlau-Yao/31557o_IMG_9624_ed-300nr_mjc.jpg","31557","Miriam Jiménez Chimil","Hoja; Rama o tallo"]
["Tlatlauquitepec and Yaonahuac","http://www.balsas-nahuatl.org/DEMCA-Images/Tlatlau-Yao","31557o_IMG_9628_ed-cr-300nr_mjc.jpg","http://www.balsas-nahuatl.org/DEMCA-Images/Tlatlau-Yao/31557o_IMG_9628_ed-cr-300nr_mjc.jpg","31557","Miriam Jiménez Chimil","Flor; Rama o tallo"]
["Tlatlauquitepec and Yaonahuac","http://www.balsas-nahuatl.org/DEMCA-Images/Tlatlau-Yao","31557o_IMG_9645_ed-cr-300nr_mjc.jpg",{"$f":"CONCATENATE(B259,\"/\",C259)","v":"http://www.balsas-nahuatl.org/DEMCA-Images/Tlatlau-Yao/31557o_IMG_9645_ed-cr-300nr_mjc.jpg"},"31557","Miriam Jiménez Chimil","Fruto; Rama o tallo"]
["Tlatlauquitepec and Yaonahuac","http://www.balsas-nahuatl.org/DEMCA-Images/Tlatlau-Yao","31558o_IMG_9664_ed-300nr_mjc.jpg","http://www.balsas-nahuatl.org/DEMCA-Images/Tlatlau-Yao/31558o_IMG_9664_ed-300nr_mjc.jpg","31558","Miriam Jiménez Chimil","Hoja; Rama o tallo"]
["Tlatlauquitepec and Yaonahuac","http://www.balsas-nahuatl.org/DEMCA-Images/Tlatlau-Yao","31559o_IMG_9690_ed-cr-300nr_mjc.jpg","http://www.balsas-nahuatl.org/DEMCA-Images/Tlatlau-Yao/31559o_IMG_9690_ed-cr-300nr_mjc.jpg","31559","Miriam Jiménez Chimil","Hoja; Rama o tallo"]
["Tlatlauquitepec and Yaonahuac","http://www.balsas-nahuatl.org/DEMCA-Images/Tlatlau-Yao","31559o_IMG_9706_ed-cr-300nr_mjc.jpg","http://www.balsas-nahuatl.org/DEMCA-Images/Tlatlau-Yao/31559o_IMG_9706_ed-cr-300nr_mjc.jpg","31559","Miriam Jiménez Chimil","Fruto; Rama o tallo"]
["Tlatlauquitepec and Yaonahuac","http://www.balsas-nahuatl.org/DEMCA-Images/Tlatlau-Yao","31560o_IMG_9734_ed-300nr_mjc.jpg","http://www.balsas-nahuatl.org/DEMCA-Images/Tlatlau-Yao/31560o_IMG_9734_ed-300nr_mjc.jpg","31560","Miriam Jiménez Chimil","Hoja; Inflorescencia; Planta entera"]
["Tlatlauquitepec and Yaonahuac","http://www.balsas-nahuatl.org/DEMCA-Images/Tlatlau-Yao","31560o_IMG_9740_ed-300nr_mjc.jpg","http://www.balsas-nahuatl.org/DEMCA-Images/Tlatlau-Yao/31560o_IMG_9740_ed-300nr_mjc.jpg","31560","Miriam Jiménez Chimil","Flor; Rama o tallo"]
["Tlatlauquitepec and Yaonahuac","http://www.balsas-nahuatl.org/DEMCA-Images/Tlatlau-Yao","31561o_IMG_9759_ed-300nr_mjc.jpg","http://www.balsas-nahuatl.org/DEMCA-Images/Tlatlau-Yao/31561o_IMG_9759_ed-300nr_mjc.jpg","31561","Miriam Jiménez Chimil","Hoja; Rama o tallo"]
["Tlatlauquitepec and Yaonahuac","http://www.balsas-nahuatl.org/DEMCA-Images/Tlatlau-Yao","31561o_IMG_9771_ed-cr-300nr_mjc.jpg","http://www.balsas-nahuatl.org/DEMCA-Images/Tlatlau-Yao/31561o_IMG_9771_ed-cr-300nr_mjc.jpg","31561","Miriam Jiménez Chimil","Cáliz; Flor"]
["Tlatlauquitepec and Yaonahuac","http://www.balsas-nahuatl.org/DEMCA-Images/Tlatlau-Yao","31577o_IMG_0013_ed-300nr_ash.jpg","http://www.balsas-nahuatl.org/DEMCA-Images/Tlatlau-Yao/31577o_IMG_0013_ed-300nr_ash.jpg","31577","Anastasio Sotero Hernández","Hoja; Rama o tallo"]
["Tlatlauquitepec and Yaonahuac","http://www.balsas-nahuatl.org/DEMCA-Images/Tlatlau-Yao","31577o_IMG_0025_ed-300nr_ash.jpg","http://www.balsas-nahuatl.org/DEMCA-Images/Tlatlau-Yao/31577o_IMG_0025_ed-300nr_ash.jpg","31577","Anastasio Sotero Hernández","Flor; Rama o tallo"]
["Tlatlauquitepec and Yaonahuac","http://www.balsas-nahuatl.org/DEMCA-Images/Tlatlau-Yao","31578o_IMG_0029_ed-300nr_ash.jpg","http://www.balsas-nahuatl.org/DEMCA-Images/Tlatlau-Yao/31578o_IMG_0029_ed-300nr_ash.jpg","31578","Anastasio Sotero Hernández","Hoja; Rama o tallo"]
["Tlatlauquitepec and Yaonahuac","http://www.balsas-nahuatl.org/DEMCA-Images/Tlatlau-Yao","31578o_IMG_0039_ed-cr-300nr_ash.jpg","http://www.balsas-nahuatl.org/DEMCA-Images/Tlatlau-Yao/31578o_IMG_0039_ed-cr-300nr_ash.jpg","31578","Anastasio Sotero Hernández","Flor; Rama o tallo"]
["Tlatlauquitepec and Yaonahuac","http://www.balsas-nahuatl.org/DEMCA-Images/Tlatlau-Yao","31579o_IMG_0045_ed-300nr_ash.jpg","http://www.balsas-nahuatl.org/DEMCA-Images/Tlatlau-Yao/31579o_IMG_0045_ed-300nr_ash.jpg","31579","Anastasio Sotero Hernández","Hoja; Rama o tallo"]
["Tlatlauquitepec and Yaonahuac","http://www.balsas-nahuatl.org/DEMCA-Images/Tlatlau-Yao","31579o_IMG_0047_ed-cr-300nr_ash.jpg","http://www.balsas-nahuatl.org/DEMCA-Images/Tlatlau-Yao/31579o_IMG_0047_ed-cr-300nr_ash.jpg","31579","Anastasio Sotero Hernández","Cáliz; Flor"]
["Tlatlauquitepec and Yaonahuac","http://www.balsas-nahuatl.org/DEMCA-Images/Tlatlau-Yao","31579o_IMG_0050_ed-cr-300nr_ash.jpg","http://www.balsas-nahuatl.org/DEMCA-Images/Tlatlau-Yao/31579o_IMG_0050_ed-cr-300nr_ash.jpg","31579","Anastasio Sotero Hernández","Cáliz; Flor"]
["Tlatlauquitepec and Yaonahuac","http://www.balsas-nahuatl.org/DEMCA-Images/Tlatlau-Yao","31580o_IMG_0056_ed-300nr_ash.jpg","http://www.balsas-nahuatl.org/DEMCA-Images/Tlatlau-Yao/31580o_IMG_0056_ed-300nr_ash.jpg","31580","Anastasio Sotero Hernández","Hoja; Rama o tallo"]
["Tlatlauquitepec and Yaonahuac","http://www.balsas-nahuatl.org/DEMCA-Images/Tlatlau-Yao","31580o_IMG_0057_ed-cr-300nr_ash.jpg","http://www.balsas-nahuatl.org/DEMCA-Images/Tlatlau-Yao/31580o_IMG_0057_ed-cr-300nr_ash.jpg","31580","Anastasio Sotero Hernández","Cáliz; Flor; Rama o tallo"]
["Tlatlauquitepec and Yaonahuac","http://www.balsas-nahuatl.org/DEMCA-Images/Tlatlau-Yao","31581o_IMG_0066_ed-300nr_ash.jpg","http://www.balsas-nahuatl.org/DEMCA-Images/Tlatlau-Yao/31581o_IMG_0066_ed-300nr_ash.jpg","31581","Anastasio Sotero Hernández","Hoja; Rama o tallo"]
["Tlatlauquitepec and Yaonahuac","http://www.balsas-nahuatl.org/DEMCA-Images/Tlatlau-Yao","31581o_IMG_0071_ed-cr-300nr_ash.jpg","http://www.balsas-nahuatl.org/DEMCA-Images/Tlatlau-Yao/31581o_IMG_0071_ed-cr-300nr_ash.jpg","31581","Anastasio Sotero Hernández","Cáliz; Inflorescencia"]
["Tlatlauquitepec and Yaonahuac","http://www.balsas-nahuatl.org/DEMCA-Images/Tlatlau-Yao","31582o_IMG_0076_ed-300nr_ash.jpg","http://www.balsas-nahuatl.org/DEMCA-Images/Tlatlau-Yao/31582o_IMG_0076_ed-300nr_ash.jpg","31582","Anastasio Sotero Hernández","Hoja; Rama o tallo"]
["Tlatlauquitepec and Yaonahuac","http://www.balsas-nahuatl.org/DEMCA-Images/Tlatlau-Yao","31582o_IMG_0082_ed-cr-300nr_ash.jpg","http://www.balsas-nahuatl.org/DEMCA-Images/Tlatlau-Yao/31582o_IMG_0082_ed-cr-300nr_ash.jpg","31582","Anastasio Sotero Hernández","Cáliz; Flor"]
["Tlatlauquitepec and Yaonahuac","http://www.balsas-nahuatl.org/DEMCA-Images/Tlatlau-Yao","31583o_IMG_0087_ed-cr-300nr_ash.jpg","http://www.balsas-nahuatl.org/DEMCA-Images/Tlatlau-Yao/31583o_IMG_0087_ed-cr-300nr_ash.jpg","31583","Anastasio Sotero Hernández","Hoja; Rama o tallo"]
["Tlatlauquitepec and Yaonahuac","http://www.balsas-nahuatl.org/DEMCA-Images/Tlatlau-Yao","31583o_IMG_0090_ed-cr-300nr_ash.jpg","http://www.balsas-nahuatl.org/DEMCA-Images/Tlatlau-Yao/31583o_IMG_0090_ed-cr-300nr_ash.jpg","31583","Anastasio Sotero Hernández","Cáliz; Inflorescencia"]
["Tlatlauquitepec and Yaonahuac","http://www.balsas-nahuatl.org/DEMCA-Images/Tlatlau-Yao","31584o_IMG_0104_ed-300nr_ash.jpg","http://www.balsas-nahuatl.org/DEMCA-Images/Tlatlau-Yao/31584o_IMG_0104_ed-300nr_ash.jpg","31584","Anastasio Sotero Hernández","Hoja; Rama o tallo"]
["Tlatlauquitepec and Yaonahuac","http://www.balsas-nahuatl.org/DEMCA-Images/Tlatlau-Yao","31584o_IMG_0114_ed-300nr_ash.jpg","http://www.balsas-nahuatl.org/DEMCA-Images/Tlatlau-Yao/31584o_IMG_0114_ed-300nr_ash.jpg","31584","Anastasio Sotero Hernández","Cáliz; Flor"]
["Tlatlauquitepec and Yaonahuac","http://www.balsas-nahuatl.org/DEMCA-Images/Tlatlau-Yao","31585o_IMG_0118_ed-300nr_ash.jpg","http://www.balsas-nahuatl.org/DEMCA-Images/Tlatlau-Yao/31585o_IMG_0118_ed-300nr_ash.jpg","31585","Anastasio Sotero Hernández","Hoja; Rama o tallo"]
["Tlatlauquitepec and Yaonahuac","http://www.balsas-nahuatl.org/DEMCA-Images/Tlatlau-Yao","31585o_IMG_0127_ed-cr-300nr_ash.jpg","http://www.balsas-nahuatl.org/DEMCA-Images/Tlatlau-Yao/31585o_IMG_0127_ed-cr-300nr_ash.jpg","31585","Anastasio Sotero Hernández","Flor; Rama o tallo"]
["Tlatlauquitepec and Yaonahuac","http://www.balsas-nahuatl.org/DEMCA-Images/Tlatlau-Yao","31586o_IMG_0137_ed-300nr_ash.jpg","http://www.balsas-nahuatl.org/DEMCA-Images/Tlatlau-Yao/31586o_IMG_0137_ed-300nr_ash.jpg","31586","Anastasio Sotero Hernández","Hoja; Inflorescencia; Rama o tallo"]
["Tlatlauquitepec and Yaonahuac","http://www.balsas-nahuatl.org/DEMCA-Images/Tlatlau-Yao","31586o_IMG_0143_ed-300nr_ash.jpg","http://www.balsas-nahuatl.org/DEMCA-Images/Tlatlau-Yao/31586o_IMG_0143_ed-300nr_ash.jpg","31586","Anastasio Sotero Hernández","Inflorescencia; Rama o tallo"]
["Tlatlauquitepec and Yaonahuac","http://www.balsas-nahuatl.org/DEMCA-Images/Tlatlau-Yao","31586o_IMG_0150_ed-cr-300nr_ash.jpg","http://www.balsas-nahuatl.org/DEMCA-Images/Tlatlau-Yao/31586o_IMG_0150_ed-cr-300nr_ash.jpg","31586","Anastasio Sotero Hernández","Cáliz; Flor"]